2CCN - Level 2 Cost Centre Name,,9CCN - Level 9 Cost Centre Name,9CCC - Level 9 Cost Centre Code,9AN - Level 9 Account Name,9AC - Level 9 Account Code,Transaction Description,Date Paid,Transaction Reference,Analysed Amount,2AC - Level 2 Account Codes,Supplier Name,Supplier Code
Gloucester City Council,23UE,Advance City Attractions,LT109,Materials For Sale,5080,12-59 years,03/10/2016,423951,35,NET,Drayton Manor Park Ltd,10744W
Gloucester City Council,23UE,Advance City Attractions,LT109,Sale Of Goods And Services,9230,12-59 years,03/10/2016,423951,-5,NET,Drayton Manor Park Ltd,10744W
Gloucester City Council,23UE,Cemeteries,HC300,Basic Pay - Temporary Staff,2751,temp staff w/e 4/9/16,03/10/2016,423790,351.9,NET,Premiere Employment Group Ltd,55468Z
Gloucester City Council,23UE,Cemeteries,HC300,Basic Pay - Temporary Staff,2751,Temp staff w/e 4/9/16,03/10/2016,423789,351.9,NET,Premiere Employment Group Ltd,55468Z
Gloucester City Council,23UE,City Museum And Art Gallery,LM200,Publications For Sale,5064,goods for resale,03/10/2016,422632,611.87,NET,Wild And Wolf Ltd,15010D
Gloucester City Council,23UE,Contact Centre,RB300,Stationery,5302,stationery,03/10/2016,423874,72.68,NET,Lyreco Uk Ltd,11746G
Gloucester City Council,23UE,Financial Services,RT200,Fees For Services Received,5350,DBS charges,03/10/2016,419405,64,NET,Gloucestershire County Council,18650D
Gloucester City Council,23UE,Financial Services,RT200,Vocational Training,2970,course fees,03/10/2016,423667,200,NET,Cipfa,02062F
Gloucester City Council,23UE,REDACTED,REDACTED,REDACTED,REDACTED,REDACTED,03/10/2016,REDACTED,489.44,NET,REDACTED,REDACTED
Gloucester City Council,23UE,REDACTED,REDACTED,REDACTED,REDACTED,REDACTED,03/10/2016,REDACTED,198.6,NET,REDACTED,REDACTED
Gloucester City Council,23UE,Homelessness Prevention,CH122,Fees For Services Received,5350,Housing RIA & Deposit,03/10/2016,424140,1000,NET,REDACTED,REDACTED
Gloucester City Council,23UE,Homelessness Prevention,CH122,Fees For Services Received,5350,Housing Deposit,03/10/2016,424150,425,NET,Surelet,06858N
Gloucester City Council,23UE,REDACTED,REDACTED,REDACTED,REDACTED,REDACTED,03/10/2016,REDACTED,1000,NET,REDACTED,REDACTED
Gloucester City Council,23UE,REDACTED,REDACTED,REDACTED,REDACTED,REDACTED,03/10/2016,REDACTED,395,NET,REDACTED,REDACTED
Gloucester City Council,23UE,REDACTED,REDACTED,REDACTED,REDACTED,REDACTED,03/10/2016,REDACTED,500,NET,REDACTED,REDACTED
Gloucester City Council,23UE,Printing,RP103,Printing,5300,June 2016 printing,03/10/2016,423843,467.07,NET,Alpha Colour Printers Ltd,00945B
Gloucester City Council,23UE,Targeted Historic Grants,GY008,Contract Payments,0020,grant payment,03/10/2016,424145,3765,CAP,Don Meadows And Sons,17205R
Gloucester City Council,23UE,Business Transformation & Tech,RT700,Computer Software <5000,5425,Various Items,04/10/2016,423940,2433.5,NET,Civica Services Ltd,58099E
Gloucester City Council,23UE,City Museum And Art Gallery,LM200,Publications For Sale,5064,goods for resale,04/10/2016,423111,558.9,NET,Moussa Direct Ltd,12527M
Gloucester City Council,23UE,REDACTED,REDACTED,REDACTED,REDACTED,REDACTED,04/10/2016,REDACTED,18,NET,REDACTED,REDACTED
Gloucester City Council,23UE,Council Streetcare Team,HI101,Fees For Services Received,5350,Diamond Jubilee Close,04/10/2016,423954,90,NET,Greenfields Garden Services Ltd,48130G
Gloucester City Council,23UE,Council Streetcare Team,HI101,Window Cleaning,3610,viewing chamber cleaning AUG16,04/10/2016,423793,140,NET,Poles Apart Window Cleaning,11636R
Gloucester City Council,23UE,Development Management,PT200,Fees For Services Received,5350,temp staff w/c 22/8/16,04/10/2016,423431,1420,NET,The Oyster Partnership Limited,14900T
Gloucester City Council,23UE,Development Management,PT200,Fees For Services Received,5350,temp staff w/c 29/8/16,04/10/2016,423846,1200,NET,The Oyster Partnership Limited,14900T
Gloucester City Council,23UE,Development Management,PT200,Fees For Services Received,5350,Temp staff w/c 5/9/16,04/10/2016,423729,1471.8,NET,The Oyster Partnership Limited,14900T
Gloucester City Council,23UE,REDACTED,REDACTED,REDACTED,REDACTED,REDACTED,04/10/2016,REDACTED,140,NET,REDACTED,REDACTED
Gloucester City Council,23UE,General Drainage Works,PY241,Contract Payments,0020,Silt Clearance,04/10/2016,423929,460,CAP,Rj Contracting (Environmental) Ltd,07429H
Gloucester City Council,23UE,Grants To Voluntary Sector,FG100,Members Allocation Fund,7100F,litter bins,04/10/2016,423761,239.37,NET,Wybone Limited,13540L
Gloucester City Council,23UE,REDACTED,REDACTED,REDACTED,REDACTED,REDACTED,04/10/2016,REDACTED,748.56,NET,REDACTED,REDACTED
Gloucester City Council,23UE,REDACTED,REDACTED,REDACTED,REDACTED,REDACTED,04/10/2016,REDACTED,400,NET,REDACTED,REDACTED
Gloucester City Council,23UE,REDACTED,REDACTED,REDACTED,REDACTED,REDACTED,04/10/2016,REDACTED,400,NET,REDACTED,REDACTED
Gloucester City Council,23UE,Investment Property,RB500,Asbestos Management Plan,3003,Kings House Asbestos Survey,04/10/2016,423962,395,NET,Gloucester Asbestos Ltd,00496K
Gloucester City Council,23UE,REDACTED,REDACTED,REDACTED,REDACTED,REDACTED,04/10/2016,REDACTED,21,NET,REDACTED,REDACTED
Gloucester City Council,23UE,REDACTED,REDACTED,REDACTED,REDACTED,REDACTED,04/10/2016,REDACTED,1200,NET,REDACTED,REDACTED
Gloucester City Council,23UE,REDACTED,REDACTED,REDACTED,REDACTED,REDACTED,04/10/2016,REDACTED,600,NET,REDACTED,REDACTED
Gloucester City Council,23UE,Planning Policy & Heritage,PT300,Basic Pay - Temporary Staff,2751,temp staff w/e 08/08/2016,04/10/2016,422757,2261.81,NET,The Oyster Partnership Limited,14900T
Gloucester City Council,23UE,Planning Policy & Heritage,PT300,Basic Pay - Temporary Staff,2751,temporary staff w/c 15/8/16,04/10/2016,423052,2292.2,NET,The Oyster Partnership Limited,14900T
Gloucester City Council,23UE,Planning Policy & Heritage,PT300,Basic Pay - Temporary Staff,2751,temp staff w/c 22/8/16,04/10/2016,423432,2291.81,NET,The Oyster Partnership Limited,14900T
Gloucester City Council,23UE,Planning Policy & Heritage,PT300,Basic Pay - Temporary Staff,2751,temp staff w/c 29/8/16,04/10/2016,423845,1865.81,NET,The Oyster Partnership Limited,14900T
Gloucester City Council,23UE,Planning Policy & Heritage,PT300,Basic Pay - Temporary Staff,2751,temp staff w/c 5/9/16,04/10/2016,423795,2343.31,NET,The Oyster Partnership Limited,14900T
Gloucester City Council,23UE,Shopmobility,PE200,Cleaning Materials,3600,sanitary disposal,04/10/2016,423059,12.91,NET,Ocs Group Uk Limited T/A Cannon,06506A
Gloucester City Council,23UE,Ugly Structures,GY010,Contract Payments,0020,Kings Walk Bastian,04/10/2016,423573,2750,CAP,J M Grail (General Engineering) Ltd,03204A
Gloucester City Council,23UE,Vehicles,RS140,Fuel,4012,Fuel,04/10/2016,422686,282.5,NET,Allstar Business Solutions Ltd (Arval),06594A
Gloucester City Council,23UE,Vehicles,RS140,Fuel,4012,vehicle fuel,04/10/2016,423855,159.81,NET,Allstar Business Solutions Ltd (Arval),06594A
Gloucester City Council,23UE,Vehicles,RS140,Fuel,4012,vehicle fuel,04/10/2016,423876,316.85,NET,Allstar Business Solutions Ltd (Arval),06594A
Gloucester City Council,23UE,Aspire Admin Charges,LC105,Security Services Fees,5351,Services October 2016,05/10/2016,423898,184.94,NET,G4s Cash Solutions (Uk) Ltd,04290V
Gloucester City Council,23UE,Cems/Crems Admin,HC100,Security Services Fees,5351,Services October 2016,05/10/2016,423898,105.42,NET,G4s Cash Solutions (Uk) Ltd,04290V
Gloucester City Council,23UE,City Museum And Art Gallery,LM200,Security Services Fees,5351,Services October 2016,05/10/2016,423898,92.47,NET,G4s Cash Solutions (Uk) Ltd,04290V
Gloucester City Council,23UE,Client Revs & Bens Contract,RT240,Bailiffs Fees,5368,vat only invoice,05/10/2016,423430,0,NET,Bristow & Sutor,05450M
Gloucester City Council,23UE,Client Revs & Bens Contract,RT240,Bailiffs Fees,5368,VAT only invoice,05/10/2016,423693,0,NET,Bristow & Sutor,05450M
Gloucester City Council,23UE,REDACTED,REDACTED,REDACTED,REDACTED,REDACTED,05/10/2016,REDACTED,245,NET,REDACTED,REDACTED
Gloucester City Council,23UE,Community Strat & Engagement,FP100,Grants,7100C,grant,05/10/2016,424189,1500,NET,Gay Glos,04898V
Gloucester City Council,23UE,REDACTED,REDACTED,REDACTED,REDACTED,REDACTED,05/10/2016,REDACTED,172,NET,REDACTED,REDACTED
Gloucester City Council,23UE,REDACTED,REDACTED,REDACTED,REDACTED,REDACTED,05/10/2016,REDACTED,172,NET,REDACTED,REDACTED
Gloucester City Council,23UE,REDACTED,REDACTED,REDACTED,REDACTED,REDACTED,05/10/2016,REDACTED,35,NET,REDACTED,REDACTED
Gloucester City Council,23UE,Docks Complex - Services,RB100,Security Services Fees,5351,Services October 2016,05/10/2016,423898,276.2,NET,G4s Cash Solutions (Uk) Ltd,04290V
Gloucester City Council,23UE,Employers Pension Contribs,ZR355,Pension Contribs Incl Backf,2901,August 16,05/10/2016,423956,26210.38,NET,Gloucestershire County Council,10614L
Gloucester City Council,23UE,Folk Museum,LM210,Security Services Fees,5351,Services October 2016,05/10/2016,423898,92.47,NET,G4s Cash Solutions (Uk) Ltd,04290V
Gloucester City Council,23UE,Gloucester Guildhall,LA100,Security Services Fees,5351,Services October 2016,05/10/2016,423898,92.47,NET,G4s Cash Solutions (Uk) Ltd,04290V
Gloucester City Council,23UE,Grants To Voluntary Sector,FG100,Grants,7100C,grant,05/10/2016,424190,2640,NET,St Hilda'S Lunch Club,03586D
Gloucester City Council,23UE,Hmo Licences,HE520,Operational Equipment <5000,5012,interview CDs,05/10/2016,423928,168,NET,Canford Audio Plc,07875D
Gloucester City Council,23UE,Hmo Licences,HE520,Operational Equipment <5000,5012,support charge Oct16-Oct17,05/10/2016,423794,190,NET,Ferret Information Systems Ltd,15035L
Gloucester City Council,23UE,Human Resources,EH100,Fees For Services Received,5350,AFD Assessment,05/10/2016,423955,285.06,NET,Gloucestershire County Council,18650D
Gloucester City Council,23UE,Internal Health & Safety,EH110,Other Minor Supplies Services,5590,nitrile gloves,05/10/2016,423778,15.9,NET,Selles Medical Ltd,50592W
Gloucester City Council,23UE,Licences,HE510,Vocational Training,2970,Scrap metal Dealers Act training,05/10/2016,423670,125,NET,The Institute Of Licensing (Events) Ltd,10855K
Gloucester City Council,23UE,Nms Contract,HI102,Contracted Services,6970,Pensions recharge August 16,05/10/2016,423849,10109.63,NET,Enterprise (Aol) Ltd,06695G
Gloucester City Council,23UE,Nms Contract,HI102,Contracted Services,6970,Undercharge on invoice 90506395,05/10/2016,422725,6464.37,NET,Enterprise (Aol) Ltd,06695G
Gloucester City Council,23UE,Off Street Car Parks,PP110,Buildings Insurance,3800,Direct Recoverable Income - insurance,05/10/2016,422181,337.9,NET,Colliers International,15540S
Gloucester City Council,23UE,Off Street Car Parks,PP110,Rents,3200,KINGS WALK RIA SEP-DEC16,05/10/2016,424177,46250,NET,Colliers International,15540S
Gloucester City Council,23UE,Tic Theatre Ticket Sales,LT107,Materials For Sale,5080,Ticket Sales ' History Festival',05/10/2016,424184,11453,NET,Gust,17222R
Gloucester City Council,23UE,Tic Theatre Ticket Sales,LT107,Other Minor Income,9900,Ticket Sales ' History Festival',05/10/2016,424184,-307.09,NET,Gust,17222R
Gloucester City Council,23UE,Tic Theatre Ticket Sales,LT107,Sale Of Goods And Services,9230,Ticket Sales ' History Festival',05/10/2016,424184,-477.21,NET,Gust,17222R
Gloucester City Council,23UE,Tourism Marketing,LT100,Security Services Fees,5351,Services October 2016,05/10/2016,423898,92.47,NET,G4s Cash Solutions (Uk) Ltd,04290V
Gloucester City Council,23UE,Tourism Marketing,LT100,Window Cleaning,3610,Window Cleaning,05/10/2016,423890,24,NET,Interserve Fs (Uk) Limited,00442K
Gloucester City Council,23UE,Utilities,PT502,Electricity Supply,3110,Charges 1 Apr - 1 Jun 2016,05/10/2016,423860,190.01,NET,British Gas,59061X
Gloucester City Council,23UE,Youth Grant 2011/12,FP107,Grants To Advice Centres,7100,grant,05/10/2016,424361,2500,NET,Gloucestershire Young Carers,11062B
Gloucester City Council,23UE,Grants To Voluntary Sector,FG100,Grants To Advice Centres,7100,grant,06/10/2016,424433,350,NET,That White Room,17235F
Gloucester City Council,23UE,Grants To Voluntary Sector,FG100,Members Allocation Fund,7100F,grant,06/10/2016,424431,500,NET,That White Room,17235F
Gloucester City Council,23UE,REDACTED,REDACTED,REDACTED,REDACTED,REDACTED,06/10/2016,REDACTED,357.75,NET,REDACTED,REDACTED
Gloucester City Council,23UE,REDACTED,REDACTED,REDACTED,REDACTED,REDACTED,06/10/2016,REDACTED,860,NET,REDACTED,REDACTED
Gloucester City Council,23UE,REDACTED,REDACTED,REDACTED,REDACTED,REDACTED,06/10/2016,REDACTED,-107.5,NET,REDACTED,REDACTED
Gloucester City Council,23UE,Guildhall Lettings,LA400,Materials For Sale,5080,August 2016 Client Sessions,06/10/2016,424434,200,NET,Gloucestershire Music Makers,13755L
Gloucester City Council,23UE,Guildhall Lettings,LA400,Sale Of Goods And Services,9230,August 2016 Client Sessions,06/10/2016,424434,-40,NET,Gloucestershire Music Makers,13755L
Gloucester City Council,23UE,Homelessness,CH120,Reimbursements,9100,Calls,06/10/2016,422740,22.5,NET,Orbis Protect Limited*,56370J
Gloucester City Council,23UE,Homelessness,CH120,Reimbursements,9100,Calls April 16,06/10/2016,422739,89.28,NET,Orbis Protect Limited*,56370J
Gloucester City Council,23UE,Off Street Car Parks,PP110,Rents,3200,Car Park,06/10/2016,423853,63528.19,NET,Workman Llp,11021M
Gloucester City Council,23UE,Off Street Car Parks,PP110,Service Charges,3020,Car Park,06/10/2016,423853,1787.63,NET,Workman Llp,11021M
Gloucester City Council,23UE,Youth Grant 2011/12,FP107,Grants,7100C,grant,06/10/2016,424432,2500,NET,Play Gloucestershire,07251S
Gloucester City Council,23UE,Advance City Attractions,LT109,Materials For Sale,5080,Tickets Aug 16,07/10/2016,423935,69.5,NET,West Midlands Safari & Leisure Park,10891F
Gloucester City Council,23UE,Advance City Attractions,LT109,Sale Of Goods And Services,9230,Tickets Aug 16,07/10/2016,423935,-9.5,NET,West Midlands Safari & Leisure Park,10891F
Gloucester City Council,23UE,REDACTED,REDACTED,REDACTED,REDACTED,REDACTED,07/10/2016,REDACTED,500,NET,REDACTED,REDACTED
Gloucester City Council,23UE,City Museum Catering,LM202,Catering Provisions -Food,5110,August 2016 Rental,07/10/2016,423743,135,NET,La Spaziale Uk Ltd,11823P
Gloucester City Council,23UE,Crematorium,HC200,Fees For Services Received,5350,Crem Fees September 2016,07/10/2016,424450,903.76,NET,Dr C M Stretton,00306P
Gloucester City Council,23UE,Crematorium,HC200,Fees For Services Received,5350,Crem Fees September 2016,07/10/2016,424451,1185.04,NET,Dr D Martin,00890P
Gloucester City Council,23UE,Crematorium,HC200,Fees For Services Received,5350,Crem Fees September 2016,07/10/2016,424452,563.44,NET,Dr R W Bell,01571P
Gloucester City Council,23UE,REDACTED,REDACTED,REDACTED,REDACTED,REDACTED,07/10/2016,REDACTED,110,NET,REDACTED,REDACTED
Gloucester City Council,23UE,Docks Complex - Telephones,RB120,Mobile Phones,5409,business data charges,07/10/2016,423894,350.61,NET,O2 Uk,16206Y
Gloucester City Council,23UE,Docks Complex - Telephones,RB120,Mobile Phones,5409,Charges Aug 16,07/10/2016,423896,1004,NET,O2 Uk,16206Y
Gloucester City Council,23UE,REDACTED,REDACTED,REDACTED,REDACTED,REDACTED,07/10/2016,REDACTED,700,NET,REDACTED,REDACTED
Gloucester City Council,23UE,Homelessness,CH120,Fees For Services Received,5350,Calls,07/10/2016,422741,64.28,NET,Orbis Protect Limited*,56370J
Gloucester City Council,23UE,Homelessness,CH120,Fees For Services Received,5350,OOH Calls,07/10/2016,422738,47.5,NET,Orbis Protect Limited*,56370J
Gloucester City Council,23UE,Homelessness,CH120,Rent In Advance,5516,housing ria & deposit,07/10/2016,424449,272.72,NET,REDACTED,REDACTED
Gloucester City Council,23UE,Homelessness Prevention,CH122,Advertising And Publicity,5702,Advertisements July 2016,07/10/2016,423124,209.16,NET,Local World Ltd,08556P
Gloucester City Council,23UE,Homelessness Prevention,CH122,Advertising And Publicity,5702,adverts 18/6 & 19/6,07/10/2016,423137,45,NET,Local World Ltd,08556P
Gloucester City Council,23UE,Homelessness Prevention,CH122,Advertising And Publicity,5702,Adverts July 2016,07/10/2016,423392,180,NET,Local World Ltd,08556P
Gloucester City Council,23UE,Homelessness Prevention,CH122,Fees For Services Received,5350,housing ria & deposit,07/10/2016,424449,350,NET,REDACTED,REDACTED
Gloucester City Council,23UE,Innsworth Lane Sports Pitches,LY079,Contract Payments,0020,Innsworth Sportsfield,07/10/2016,423742,650,CAP,Gdb Groundcare,15552J
Gloucester City Council,23UE,Marketing Gloucester Charges,RC433,Events,5952,Mayors Christmas Party 15,07/10/2016,423744,100,NET,Ribston Hall High School,16386S
Gloucester City Council,23UE,Off Street Car Parks,PP110,Rents,3200,market hall rent SEP-DEC16,07/10/2016,423854,10215.08,NET,Workman Llp,11021M
Gloucester City Council,23UE,Off Street Car Parks,PP110,Rents,3200,pedestrian access rent SEP-DEC16,07/10/2016,423852,842.74,NET,Workman Llp,11021M
Gloucester City Council,23UE,Off Street Car Parks,PP110,Service Charges,3020,car park office rent SEP-DEC16,07/10/2016,423851,352.28,NET,Workman Llp,11021M
Gloucester City Council,23UE,Shopmobility,PE200,Maintenance Of Equipment,5030,Repairs to Chairs,07/10/2016,423537,120,NET,Disabled Care & Mobility,12675V
Gloucester City Council,23UE,Shopmobility,PE200,Maintenance Of Equipment,5030,scooter repair,07/10/2016,423858,60,NET,Disabled Care & Mobility,12675V
Gloucester City Council,23UE,Superbreak,LT104,Materials For Sale,5080,Tickets sold on commission - Nov 16,07/10/2016,423677,324,NET,Superbreak Mini Holidays,00712D
Gloucester City Council,23UE,Superbreak,LT104,Materials For Sale,5080,Tickets sold on commission - Dec 16,07/10/2016,423676,156,NET,Superbreak Mini Holidays,00712D
Gloucester City Council,23UE,Superbreak,LT104,Sale Of Goods And Services,9230,Tickets sold on commission - Nov 16,07/10/2016,423677,-23.24,NET,Superbreak Mini Holidays,00712D
Gloucester City Council,23UE,Superbreak,LT104,Sale Of Goods And Services,9230,Tickets sold on commission - Dec 16,07/10/2016,423676,-12.99,NET,Superbreak Mini Holidays,00712D
Gloucester City Council,23UE,Theatre Tokens,LT106,Materials For Sale,5080,August 2016,07/10/2016,423873,60,NET,Society Of London Theatre,05656Z
Gloucester City Council,23UE,Theatre Tokens,LT106,Sale Of Goods And Services,9230,August 2016,07/10/2016,423873,-3,NET,Society Of London Theatre,05656Z
Gloucester City Council,23UE,Tic Rovercard Sales,LT101,Materials For Sale,5080,Tickets Jul - Aug 2016,07/10/2016,423740,1707.4,NET,Stagecoach Services Ltd,56554W
Gloucester City Council,23UE,Tic Rovercard Sales,LT101,Sale Of Goods And Services,9230,Tickets Jul - Aug 2016,07/10/2016,423740,-142.29,NET,Stagecoach Services Ltd,56554W
Gloucester City Council,23UE,REDACTED,REDACTED,REDACTED,REDACTED,REDACTED,07/10/2016,REDACTED,312.59,NET,REDACTED,REDACTED
Gloucester City Council,23UE,REDACTED,REDACTED,REDACTED,REDACTED,REDACTED,07/10/2016,REDACTED,-26.05,NET,REDACTED,REDACTED
Gloucester City Council,23UE,Asset Management,RS300,General Repair/Maint Buildings,3000,Evolution Mobile 24/8-20/09,10/10/2016,423398,814,NET,Elliott Group Ltd,04510E
Gloucester City Council,23UE,Asset Management,RS300,General Repair/Maint Buildings,3000,hire of evo mobile unit,10/10/2016,422325,1064,NET,Elliott Group Ltd,04510E
Gloucester City Council,23UE,Asset Management,RS300,General Repair/Maint Buildings,3000,St Oswalds Priory CDM fees,10/10/2016,423003,250,NET,Goddard Consulting Llp,10598G
Gloucester City Council,23UE,Asset Management,RS300,General Repair/Maint Buildings,3000,welfare unit 26/8-4/9,10/10/2016,424302,290.84,NET,Elliott Group Ltd,04510E
Gloucester City Council,23UE,Asset Management,RS300,General Repair/Maint Buildings,3000,welfare unit collection,10/10/2016,424301,325,NET,Elliott Group Ltd,04510E
Gloucester City Council,23UE,Contaminated Land,HE301,Fees For Services Received,5350,Contaminated Land Work,10/10/2016,423736,2233.84,NET,Bromsgrove District Council,15037G
Gloucester City Council,23UE,Council Tax New Burdens,DD110,Rent Allowances - Normal Payts,7200,DEPOSIT & DHP REF 33582,10/10/2016,424482,400,NET,Trimed Properties Ltd,17457J
Gloucester City Council,23UE,General Works Fund,RY203,Capital General Repairs & Main,0013,crem toilet hire,10/10/2016,422532,84,CAP,Abbey Loos Limited,10787B
Gloucester City Council,23UE,General Works Fund,RY203,Capital General Repairs & Main,0013,toilet hire re Crem,10/10/2016,423770,63,CAP,Abbey Loos Limited,10787B
Gloucester City Council,23UE,Homelessness,CH120,Rent In Advance,5516,"DEP, RIA & DHP  REF 113712",10/10/2016,424483,368.2,NET,Trimed Properties Ltd,17457J
Gloucester City Council,23UE,Homelessness,CH120,Rent In Advance,5516,RIA DEP & DHP REF 100174,10/10/2016,424485,489.44,NET,Trimed Properties Ltd,17457J
Gloucester City Council,23UE,Homelessness,CH120,Rent In Advance,5516,ria dep & dhp ref 110662,10/10/2016,424484,368.2,NET,Trimed Properties Ltd,17457J
Gloucester City Council,23UE,Homelessness Prevention,CH122,Fees For Services Received,5350,DEPOSIT & DHP REF 33582,10/10/2016,424482,400,NET,Trimed Properties Ltd,17457J
Gloucester City Council,23UE,Homelessness Prevention,CH122,Fees For Services Received,5350,"DEP, RIA & DHP REF 113712",10/10/2016,424483,400,NET,Trimed Properties Ltd,17457J
Gloucester City Council,23UE,Homelessness Prevention,CH122,Fees For Services Received,5350,RIA DEP & DHP REF 100174,10/10/2016,424485,500,NET,Trimed Properties Ltd,17457J
Gloucester City Council,23UE,Homelessness Prevention,CH122,Fees For Services Received,5350,ria dep & dhp ref 110662,10/10/2016,424484,400,NET,Trimed Properties Ltd,17457J
Gloucester City Council,23UE,REDACTED,REDACTED,REDACTED,REDACTED,REDACTED,10/10/2016,REDACTED,600,NET,REDACTED,REDACTED
Gloucester City Council,23UE,Mandatory Rent Allowances,DD100,Rent Allowances - Normal Payts,7200,"DEP, RIA & DHP REF 113712",10/10/2016,424483,400,NET,Trimed Properties Ltd,17457J
Gloucester City Council,23UE,Mandatory Rent Allowances,DD100,Rent Allowances - Normal Payts,7200,RIA DEP & DHP REF 100174,10/10/2016,424485,400,NET,Trimed Properties Ltd,17457J
Gloucester City Council,23UE,Mandatory Rent Allowances,DD100,Rent Allowances - Normal Payts,7200,ria dep & dhp ref 110662,10/10/2016,424484,400,NET,Trimed Properties Ltd,17457J
Gloucester City Council,23UE,REDACTED,REDACTED,REDACTED,REDACTED,REDACTED,10/10/2016,REDACTED,400,NET,REDACTED,REDACTED
Gloucester City Council,23UE,Planning Policy & Heritage,PT300,Basic Pay - Temporary Staff,2751,temp staff,10/10/2016,424248,2329,NET,The Oyster Partnership Limited,14900T
Gloucester City Council,23UE,Registration Of Electors,RS400,Fees For Services Received,5350,van hire for EU referendum,10/10/2016,421109,84.1,NET,Thrifty Van Hire,00546W
Gloucester City Council,23UE,The Fleece,RB530,General Repair/Maint Buildings,3000,toilet hire Fleece Hotel,10/10/2016,422533,168,NET,Abbey Loos Limited,10787B
Gloucester City Council,23UE,The Fleece,RB530,General Repair/Maint Buildings,3000,toilet hire re Fleece Hotel,10/10/2016,423769,184,NET,Abbey Loos Limited,10787B
Gloucester City Council,23UE,Blackfriars,LA609,Catering Provisions -Food,5110,catering 13/9/16,11/10/2016,424293,70,NET,Catercater Ltd,08620G
Gloucester City Council,23UE,Blackfriars,LA609,Catering Provisions -Food,5110,catering 14/9/16,11/10/2016,424294,140,NET,Catercater Ltd,08620G
Gloucester City Council,23UE,Blackfriars,LA609,Catering Provisions -Food,5110,catering 15/9/16,11/10/2016,424289,140,NET,Catercater Ltd,08620G
Gloucester City Council,23UE,Blackfriars,LA609,Catering Provisions -Food,5110,catering 16/9/16,11/10/2016,424290,140,NET,Catercater Ltd,08620G
Gloucester City Council,23UE,Blackfriars,LA609,Catering Provisions -Food,5110,catering 17/9/16,11/10/2016,424291,140,NET,Catercater Ltd,08620G
Gloucester City Council,23UE,Blackfriars,LA609,Catering Provisions -Food,5110,catering 18/9/16,11/10/2016,424292,140,NET,Catercater Ltd,08620G
Gloucester City Council,23UE,Blackfriars,LA609,Catering Provisions -Liquor,5111,blackfriars drinks,11/10/2016,424232,256.92,NET,Cellar Supplies Cheltenham Ltd,01563L
Gloucester City Council,23UE,Blackfriars,LA609,Catering Provisions -Liquor,5111,drinks,11/10/2016,424230,400.24,NET,Cellar Supplies Cheltenham Ltd,01563L
Gloucester City Council,23UE,Blackfriars Weddings,LA220,Catering Provisions -Liquor,5111,blackfriars drinks,11/10/2016,424231,323.54,NET,Cellar Supplies Cheltenham Ltd,01563L
Gloucester City Council,23UE,Blackfriars Weddings,LA220,Catering Provisions -Liquor,5111,drinks,11/10/2016,424229,66.96,NET,Cellar Supplies Cheltenham Ltd,01563L
Gloucester City Council,23UE,Blackfriars Weddings,LA220,Catering Provisions -Liquor,5111,drinks,11/10/2016,424230,48.37,NET,Cellar Supplies Cheltenham Ltd,01563L
Gloucester City Council,23UE,Cemeteries,HC300,General Repair/Maint Buildings,3000,CD service,11/10/2016,424226,100,NET,Revolution Multimedia,07880L
Gloucester City Council,23UE,Cemeteries,HC300,General Repair/Maint Buildings,3000,Vestrt speaker repair,11/10/2016,424227,75,NET,Revolution Multimedia,07880L
Gloucester City Council,23UE,Cemeteries,HC300,Purch Vehicles/M. Plant <5000,4000,MOT class &,11/10/2016,424303,50,NET,123 Car & Commercial,07651E
Gloucester City Council,23UE,Cemeteries,HC300,Repair/Maint Of Monuments,3004,delivery 20/9/16,11/10/2016,424256,215,NET,Easy Mix Ltd,01403L
Gloucester City Council,23UE,Cemeteries,HC300,Routine R And M - Vehicles,4011,hedgecutter service,11/10/2016,424330,162.56,NET,Garden Machinery Gloucester,55641K
Gloucester City Council,23UE,Cemeteries,HC300,Tyres,4014,Ferris 1179,11/10/2016,424304,62,NET,Ats Euromaster Ltd,06005E
Gloucester City Council,23UE,Cemeteries,HC300,Tyres,4014,Mower 1,11/10/2016,424306,123.22,NET,Ats Euromaster Ltd,06005E
Gloucester City Council,23UE,Cemeteries,HC300,Tyres,4014,mower 2,11/10/2016,424305,62,NET,Ats Euromaster Ltd,06005E
Gloucester City Council,23UE,City Museum Catering,LM202,Catering Provisions -Food,5110,milk,11/10/2016,424388,4.76,NET,Total Produce Gloucester,12645E
Gloucester City Council,23UE,City Museum Catering,LM202,Catering Provisions -Food,5110,milk,11/10/2016,424389,7.14,NET,Total Produce Gloucester,12645E
Gloucester City Council,23UE,City Museum Catering,LM202,Catering Provisions -Food,5110,milk,11/10/2016,424390,4.76,NET,Total Produce Gloucester,12645E
Gloucester City Council,23UE,City Museum Catering,LM202,Catering Provisions -Food,5110,milk,11/10/2016,424391,7.14,NET,Total Produce Gloucester,12645E
Gloucester City Council,23UE,City Museum Catering,LM202,Catering Provisions -Food,5110,milk,11/10/2016,424392,7.14,NET,Total Produce Gloucester,12645E
Gloucester City Council,23UE,REDACTED,REDACTED,REDACTED,REDACTED,REDACTED,11/10/2016,REDACTED,395,NET,REDACTED,REDACTED
Gloucester City Council,23UE,Client Revs & Bens Contract,RT240,Fees For Services Received,5350,defaulter warrant execution,11/10/2016,424297,120,NET,Assevarate Ltd,11749A
Gloucester City Council,23UE,Contact Centre,RB300,Other Minor Supplies Services,5590,Aug16 out of hours service,11/10/2016,424332,291.9,NET,Worcestershire Telecare,16419C
Gloucester City Council,23UE,Contact Centre,RB300,Other Minor Supplies Services,5590,JUL16 out of hours service,11/10/2016,424331,293.2,NET,Worcestershire Telecare,16419C
Gloucester City Council,23UE,Contact Centre,RB300,Stationery,5302,batteries & folders,11/10/2016,424324,40.52,NET,Lyreco Uk Ltd,11746G
Gloucester City Council,23UE,Contact Centre,RB300,Stationery,5302,flipchart pads,11/10/2016,424281,15.84,NET,Lyreco Uk Ltd,11746G
Gloucester City Council,23UE,Contact Centre,RB300,Stationery,5302,stationery,11/10/2016,424280,16.24,NET,Lyreco Uk Ltd,11746G
Gloucester City Council,23UE,Contact Centre,RB300,Stationery,5302,stationery,11/10/2016,424325,8.38,NET,Lyreco Uk Ltd,11746G
Gloucester City Council,23UE,Contact Centre,RB300,Stationery,5302,thermal roll,11/10/2016,424254,98,NET,Paperloop Consumables Ltd,14594B
Gloucester City Council,23UE,Contact Centre,RB300,Stationery,5302,velcro,11/10/2016,424326,8.07,NET,Lyreco Uk Ltd,11746G
Gloucester City Council,23UE,Contaminated Land,HE301,Fees For Services Received,5350,May 2016 pollution control works,11/10/2016,424319,531.1,NET,Bromsgrove District Council,15037G
Gloucester City Council,23UE,Council Streetcare Team,HI101,Fees For Services Received,5350,June & July 2016 costs,11/10/2016,423844,852.95,NET,Somerset County Council,15963G
Gloucester City Council,23UE,Council Streetcare Team,HI101,Fees For Services Received,5350,Kingsway sports pavilion works,11/10/2016,423194,4620,NET,S Merrett Services Limited,16478K
Gloucester City Council,23UE,Council Streetcare Team,HI101,Fees For Services Received,5350,trinity road tree felling,11/10/2016,423847,1200,NET,Greenfields Garden Services Ltd,48130G
Gloucester City Council,23UE,Council Streetcare Team,HI101,Maint Of Grounds - General,3030,vitamin & mineral supplement,11/10/2016,424372,4.41,NET,Angell Pets Ltd,15773P
Gloucester City Council,23UE,Countryside Unit,LP201,General Repair/Maint Buildings,3000,tools,11/10/2016,424350,122.45,NET,Screwfix Direct,54672H
Gloucester City Council,23UE,Countryside Unit,LP201,Maint Of Grounds - General,3030,brushcutter,11/10/2016,424225,268,NET,Ross Farm Machinery,02153B
Gloucester City Council,23UE,Countryside Unit,LP201,Purchase Of Livestock,5843,DNA profiling,11/10/2016,424321,20.12,NET,Dexter Cattle Society,06427X
Gloucester City Council,23UE,Countryside Unit,LP201,Purchase Of Livestock,5843,registration & testing,11/10/2016,424320,70.02,NET,Dexter Cattle Society,06427X
Gloucester City Council,23UE,Crematorium,HC200,"Seeds, Trees, Plants, Shrubs",3028,plants,11/10/2016,424358,570,NET,Genus Plant Sourcing,14143S
Gloucester City Council,23UE,Development Management,PT200,Advertising And Publicity,5702,adverts 15/9/16,11/10/2016,424218,233.73,NET,Local World Ltd,08556P
Gloucester City Council,23UE,Development Management,PT200,Advertising And Publicity,5702,adverts 1/9/16,11/10/2016,424216,262.94,NET,Local World Ltd,08556P
Gloucester City Council,23UE,Development Management,PT200,Advertising And Publicity,5702,adverts 29/9,11/10/2016,424220,204.51,NET,Local World Ltd,08556P
Gloucester City Council,23UE,Development Management,PT200,Advertising And Publicity,5702,adverts 8/9/16,11/10/2016,424217,175.3,NET,Local World Ltd,08556P
Gloucester City Council,23UE,REDACTED,REDACTED,REDACTED,REDACTED,REDACTED,11/10/2016,REDACTED,86,NET,REDACTED,REDACTED
Gloucester City Council,23UE,Development Management,PT200,Contents Insurance,5700,adverts 22/9/16,11/10/2016,424219,438.24,NET,Local World Ltd,08556P
Gloucester City Council,23UE,Financial Services,RT200,Basic Pay - Temporary Staff,2751,temp staff w/e 19/8/16,11/10/2016,423785,650.47,NET,Hays Specialist Recruitment Ltd,55516P
Gloucester City Council,23UE,Food Safety,HE100,Fees For Services Received,5350,Food Safety - good proctice guide,11/10/2016,424307,110.25,NET,Chartered Institute Enviromental Health,50829M
Gloucester City Council,23UE,General Drainage Works,PY241,Contract Payments,0020,barnwood park silt removal,11/10/2016,423756,1645,CAP,Rj Contracting (Environmental) Ltd,07429H
Gloucester City Council,23UE,General Drainage Works,PY241,Contract Payments,0020,"re Barnwood Park, Church Lane",11/10/2016,424494,235,CAP,Nailsworth Services Ltd,16507E
Gloucester City Council,23UE,Grants To Voluntary Sector,FG100,Members Allocation Fund,7100F,clock tower park carving,11/10/2016,424258,1050,NET,Wild Wood Carving,13438C
Gloucester City Council,23UE,Grants To Voluntary Sector,FG100,Members Allocation Fund,7100F,members allocation grant 2015/16,11/10/2016,424502,150,NET,St.Oswalds Village Garden Group,17198K
Gloucester City Council,23UE,Grants To Voluntary Sector,FG100,Members Allocation Fund,7100F,members allocation grant 2015/16,11/10/2016,424503,350,NET,Westgate Tcc C/O Maggie Day,16144V
Gloucester City Council,23UE,Grants To Voluntary Sector,FG100,Members Allocation Fund,7100F,members allocation grant 2016/17,11/10/2016,424508,500,NET,Gloucestershire Youth Mini Bike Project,14319C
Gloucester City Council,23UE,Group Mgr Cult Ser & Tourism,GR102,Employee Related Advertising,2920,culture board recruitment,11/10/2016,424345,125,NET,Moose Marketing & Pr,03952A
Gloucester City Council,23UE,Guildhall Bar And Caf�,LA210,Catering Provisions -Food,5110,coffee,11/10/2016,424238,43,NET,Ethical Addictions Ltd,11654N
Gloucester City Council,23UE,Guildhall Bar And Caf�,LA210,Catering Provisions -Food,5110,coffee,11/10/2016,424239,22,NET,Ethical Addictions Ltd,11654N
Gloucester City Council,23UE,Guildhall Bar And Caf�,LA210,Catering Provisions -Food,5110,ice cream for resale,11/10/2016,424240,63,NET,Winstones Ice Cream Ltd,56347D
Gloucester City Council,23UE,Guildhall Bar And Caf�,LA210,Catering Provisions -Food,5110,milk,11/10/2016,424242,4.76,NET,Total Produce Gloucester,12645E
Gloucester City Council,23UE,Guildhall Bar And Caf�,LA210,Catering Provisions -Food,5110,milk,11/10/2016,424394,4.76,NET,Total Produce Gloucester,12645E
Gloucester City Council,23UE,Guildhall Bar And Caf�,LA210,Catering Provisions -Food,5110,milk,11/10/2016,424395,4.76,NET,Total Produce Gloucester,12645E
Gloucester City Council,23UE,Guildhall Bar And Caf�,LA210,Catering Provisions -Food,5110,milk,11/10/2016,424396,4.76,NET,Total Produce Gloucester,12645E
Gloucester City Council,23UE,Guildhall Bar And Caf�,LA210,Catering Provisions -Food,5110,milk,11/10/2016,424397,4.76,NET,Total Produce Gloucester,12645E
Gloucester City Council,23UE,Guildhall Bar And Caf�,LA210,Catering Provisions -Food,5110,milk,11/10/2016,424398,4.76,NET,Total Produce Gloucester,12645E
Gloucester City Council,23UE,Guildhall Bar And Caf�,LA210,Catering Provisions -Liquor,5111,drinks,11/10/2016,424228,115.2,NET,Gloucester Brewery,13373F
Gloucester City Council,23UE,Guildhall Bar And Caf�,LA210,Catering Provisions -Liquor,5111,drinks,11/10/2016,424233,13.98,NET,Cellar Supplies Cheltenham Ltd,01563L
Gloucester City Council,23UE,Guildhall Bar And Caf�,LA210,Catering Provisions -Liquor,5111,drinks,11/10/2016,424236,2120.29,NET,Cellar Supplies Cheltenham Ltd,01563L
Gloucester City Council,23UE,Guildhall Bar And Caf�,LA210,Catering Provisions -Liquor,5111,drinks,11/10/2016,424237,1219.56,NET,Cellar Supplies Cheltenham Ltd,01563L
Gloucester City Council,23UE,Guildhall Bar And Caf�,LA210,Catering Provisions -Liquor,5111,Messer Mixed gas,11/10/2016,424234,12.49,NET,Cellar Supplies Cheltenham Ltd,01563L
Gloucester City Council,23UE,Guildhall Bar And Caf�,LA210,Fees For Services Received,5350,consultancy work,11/10/2016,424340,2000,NET,Mya Consulting,15843U
Gloucester City Council,23UE,Guildhall Bar And Caf�,LA210,Hire Of Equipment,5020,coffee machine cleaner etc,11/10/2016,424241,51.85,NET,Nisbets,55372P
Gloucester City Council,23UE,Guildhall Cinema,LA202,General Repair/Maint Buildings,3000,speokon plug & Cable,11/10/2016,424338,47.93,NET,Cpc,52980M
Gloucester City Council,23UE,REDACTED,REDACTED,REDACTED,REDACTED,REDACTED,11/10/2016,REDACTED,100,NET,REDACTED,REDACTED
Gloucester City Council,23UE,REDACTED,REDACTED,REDACTED,REDACTED,REDACTED,11/10/2016,REDACTED,111.46,NET,REDACTED,REDACTED
Gloucester City Council,23UE,REDACTED,REDACTED,REDACTED,REDACTED,REDACTED,11/10/2016,REDACTED,100,NET,REDACTED,REDACTED
Gloucester City Council,23UE,REDACTED,REDACTED,REDACTED,REDACTED,REDACTED,11/10/2016,REDACTED,1800,NET,REDACTED,REDACTED
Gloucester City Council,23UE,Guildhall Events,LA200,Fees For Services Received,5350,whats on guide SEPT16,11/10/2016,424210,1443,NET,Color Co,57707K
Gloucester City Council,23UE,REDACTED,REDACTED,REDACTED,REDACTED,REDACTED,11/10/2016,REDACTED,885,NET,REDACTED,REDACTED
Gloucester City Council,23UE,Internal Communications,RC430,Contracted Services,6970,Grant funding Q3 2016/17,11/10/2016,424223,43662.5,NET,Marketing Gloucester Ltd,08925E
Gloucester City Council,23UE,Investment Property,RB500,General Repair/Maint Buildings,3000,MTC claims August 2016,11/10/2016,423848,19076.87,NET,Rf Gardiner Limited,12299B
Gloucester City Council,23UE,Marketing Gloucester Charges,RC433,Contracted Services,6970,staff funding Q3 2016-17,11/10/2016,424251,14912.5,NET,Marketing Gloucester Ltd,08925E
Gloucester City Council,23UE,Nms Contract,HI102,Additional Tender Items,6972,black wheeled bins & repair kit,11/10/2016,423895,4490.64,NET,Enterprise (Aol) Ltd,06695G
Gloucester City Council,23UE,Off Street Car Parks,PP110,Computer Software Maintenance,5427,DVLA enquiry serivce,11/10/2016,424360,20.8,NET,Chipside Ltd,06535T
Gloucester City Council,23UE,REDACTED,REDACTED,REDACTED,REDACTED,REDACTED,11/10/2016,REDACTED,33.09,NET,REDACTED,REDACTED
Gloucester City Council,23UE,Parks Contract Management,LP100,Maint Of Grounds - General,3030,black wheeled bins & repair kit,11/10/2016,423895,330,NET,Enterprise (Aol) Ltd,06695G
Gloucester City Council,23UE,Registration Of Electors,RS400,Fees For Services Received,5350,May16 polling station,11/10/2016,424282,220,NET,Lonsdale Road Methodist Church,04793L
Gloucester City Council,23UE,Registration Of Electors,RS400,Postages,5400,ier mailings,11/10/2016,424284,232.73,NET,Royal Mail S.Wales & South West,35830S
Gloucester City Council,23UE,Registration Of Electors,RS400,Publications,5060,Schofields Election Law R29,11/10/2016,424287,187,NET,Thomson Reuters,43110M
Gloucester City Council,23UE,Registration Of Electors,RS400,Publications,5060,Schofields election law R30,11/10/2016,424283,187,NET,Thomson Reuters,43110M
Gloucester City Council,23UE,Safer Stronger Communities,FP841,Other Minor Supplies Services,5590,Your Knife or Your Life project,11/10/2016,424313,1500,NET,"Police & Crime Commissioner, Gloucestershire",49521B
Gloucester City Council,23UE,Shopmobility,PE200,Maintenance Of Equipment,5030,repairs,11/10/2016,424271,245,NET,Willis Moss Ltd T/A Assured Mobility,17226G
Gloucester City Council,23UE,The Arbor,HC501,Catering Provisions -Food,5110,food,11/10/2016,424374,30.67,NET,Total Produce Gloucester,12645E
Gloucester City Council,23UE,The Arbor,HC501,Catering Provisions -Food,5110,food,11/10/2016,424375,37.88,NET,Total Produce Gloucester,12645E
Gloucester City Council,23UE,The Arbor,HC501,Catering Provisions -Food,5110,food,11/10/2016,424376,55.71,NET,Total Produce Gloucester,12645E
Gloucester City Council,23UE,The Arbor,HC501,Catering Provisions -Food,5110,food,11/10/2016,424377,55.6,NET,Total Produce Gloucester,12645E
Gloucester City Council,23UE,The Arbor,HC501,Catering Provisions -Food,5110,food,11/10/2016,424378,38.49,NET,Total Produce Gloucester,12645E
Gloucester City Council,23UE,The Arbor,HC501,Catering Provisions -Food,5110,food,11/10/2016,424379,31.53,NET,Total Produce Gloucester,12645E
Gloucester City Council,23UE,The Arbor,HC501,Catering Provisions -Food,5110,food,11/10/2016,424380,80.97,NET,Total Produce Gloucester,12645E
Gloucester City Council,23UE,The Arbor,HC501,Catering Provisions -Food,5110,food,11/10/2016,424381,30.72,NET,Total Produce Gloucester,12645E
Gloucester City Council,23UE,The Arbor,HC501,Catering Provisions -Food,5110,food,11/10/2016,424382,32.75,NET,Total Produce Gloucester,12645E
Gloucester City Council,23UE,The Arbor,HC501,Catering Provisions -Food,5110,food,11/10/2016,424383,343.14,NET,Bidvest Foodservice (3663),55585U
Gloucester City Council,23UE,The Arbor,HC501,Catering Provisions -Food,5110,food,11/10/2016,424384,99.46,NET,Bidvest Foodservice (3663),55585U
Gloucester City Council,23UE,The Arbor,HC501,Catering Provisions -Food,5110,food,11/10/2016,424385,144.69,NET,Bidvest Foodservice (3663),55585U
Gloucester City Council,23UE,The Arbor,HC501,Catering Provisions -Food,5110,food,11/10/2016,424399,485.01,NET,Bidvest Foodservice (3663),55585U
Gloucester City Council,23UE,The Arbor,HC501,Catering Provisions -Liquor,5111,drinks,11/10/2016,424386,256.14,NET,Cellar Supplies Cheltenham Ltd,01563L
Gloucester City Council,23UE,The Arbor,HC501,Catering Provisions -Liquor,5111,drinks,11/10/2016,424387,380.26,NET,Cellar Supplies Cheltenham Ltd,01563L
Gloucester City Council,23UE,The Arbor,HC501,Uniforms,5201,polo shirts,11/10/2016,424329,144,NET,Quality Embroidery & Printing,06518T
Gloucester City Council,23UE,Tic Theatre Ticket Sales,LT107,Materials For Sale,5080,ticket sales for daily walks Aug/Sept16,11/10/2016,424495,252,NET,Gloucester Civic Trust - Tour Account,08084L
Gloucester City Council,23UE,Tic Theatre Ticket Sales,LT107,Materials For Sale,5080,tower talks sales Aug/Sep16,11/10/2016,424498,66,NET,Gloucester Civic Trust (St Michaels Tower),07484Z
Gloucester City Council,23UE,REDACTED,REDACTED,REDACTED,REDACTED,REDACTED,11/10/2016,REDACTED,482.5,NET,REDACTED,REDACTED
Gloucester City Council,23UE,REDACTED,REDACTED,REDACTED,REDACTED,REDACTED,11/10/2016,REDACTED,8,NET,REDACTED,REDACTED
Gloucester City Council,23UE,Tic Theatre Ticket Sales,LT107,Other Minor Income,9900,ticket sales for daily walks Aug/Sept16,11/10/2016,424495,-3.15,NET,Gloucester Civic Trust - Tour Account,08084L
Gloucester City Council,23UE,Tic Theatre Ticket Sales,LT107,Other Minor Income,9900,tower talks sales Aug/Sep16,11/10/2016,424498,-1.1,NET,Gloucester Civic Trust (St Michaels Tower),07484Z
Gloucester City Council,23UE,REDACTED,REDACTED,REDACTED,REDACTED,REDACTED,11/10/2016,REDACTED,-0.05,NET,REDACTED,REDACTED
Gloucester City Council,23UE,Tic Theatre Ticket Sales,LT107,Sale Of Goods And Services,9230,ticket sales for daily walks Aug/Sept16,11/10/2016,424495,-10.5,NET,Gloucester Civic Trust - Tour Account,08084L
Gloucester City Council,23UE,Tic Theatre Ticket Sales,LT107,Sale Of Goods And Services,9230,tower talks sales Aug/Sep16,11/10/2016,424498,-2.75,NET,Gloucester Civic Trust (St Michaels Tower),07484Z
Gloucester City Council,23UE,REDACTED,REDACTED,REDACTED,REDACTED,REDACTED,11/10/2016,REDACTED,-40.21,NET,REDACTED,REDACTED
Gloucester City Council,23UE,REDACTED,REDACTED,REDACTED,REDACTED,REDACTED,11/10/2016,REDACTED,-0.67,NET,REDACTED,REDACTED
Gloucester City Council,23UE,REDACTED,REDACTED,REDACTED,REDACTED,REDACTED,11/10/2016,REDACTED,44,NET,REDACTED,REDACTED
Gloucester City Council,23UE,Tree Planting Grant Funded,LY150,Contract Payments,0020,fagus sylvatica,11/10/2016,424370,19,CAP,Mount Pleasant Trees,51352K
Gloucester City Council,23UE,Aspire Admin Charges,LC105,Fees For Services Received,5350,SEP16 staff memberships,12/10/2016,424250,464,NET,Aspire Sports & Cultural Trust,08135V
Gloucester City Council,23UE,Business Planning & Performanc,RL500,Fees For Services Received,5350,GLASS PLAQUE,12/10/2016,424270,13.74,NET,Chrome Awards,17202X
Gloucester City Council,23UE,Business Planning & Performanc,RL500,Vocational Training,2970,Pass Contract Maangement,12/10/2016,424243,295,NET,Bip Solutions Ltd,14920L
Gloucester City Council,23UE,City Museum And Art Gallery,LM200,Advertising And Publicity,5702,YOUNG DESIGNER CAMPAIGN,12/10/2016,424252,360,NET,Third Floor Design Ltd,16420U
Gloucester City Council,23UE,Civic Admin And Hospitality,RC210,Vehicle Hire,4050,leasing of mayors car OCT16-OCT17,12/10/2016,424253,2629.56,NET,Lookers Leasing Limited,15719W
Gloucester City Council,23UE,Client Revs & Bens Contract,RT240,Bailiffs Fees,5368,Dukes Direct charges 15/7/16-26/8/16,12/10/2016,424352,3371.24,NET,Civica Uk Ltd,10841X
Gloucester City Council,23UE,Client Revs & Bens Contract,RT240,Bailiffs Fees,5368,VAT ONLY INVOICE,12/10/2016,424272,0,NET,Bristow & Sutor,05450M
Gloucester City Council,23UE,Client Revs & Bens Contract,RT240,Bailiffs Fees,5368,VAT ONLY INVOICE,12/10/2016,424273,0,NET,Bristow & Sutor,05450M
Gloucester City Council,23UE,Client Revs & Bens Contract,RT240,Bailiffs Fees,5368,VAT ONLY INVOICE,12/10/2016,424278,0,NET,Bristow & Sutor,05450M
Gloucester City Council,23UE,Contact Centre,RB300,Postages,5400,acct 0252446000 post 2/9 - 22/9,12/10/2016,424366,1446.86,NET,Royal Mail S.Wales & South West,35830S
Gloucester City Council,23UE,Council Streetcare Team,HI101,Fees For Services Received,5350,Glevum Court inspections,12/10/2016,424457,90,NET,Greenfields Garden Services Ltd,48130G
Gloucester City Council,23UE,Council Streetcare Team,HI101,Fees For Services Received,5350,Glevum Way Inspections,12/10/2016,419373,150,NET,Greenfields Garden Services Ltd,48130G
Gloucester City Council,23UE,Council Streetcare Team,HI101,Fees For Services Received,5350,The Orchard,12/10/2016,423946,158,NET,Greenfields Garden Services Ltd,48130G
Gloucester City Council,23UE,Countryside Unit,LP201,Contract Cleaning,3620,Claeaning SEP16,12/10/2016,424328,130,NET,Cv Fisher Cleaning Services,14907C
Gloucester City Council,23UE,Countryside Unit,LP201,Livestock Foodstuff,5841,register female cow 7469,12/10/2016,424314,25,NET,Gloucester Cattle Society,56263L
Gloucester City Council,23UE,Crematorium,HC200,Equipment For Sale,5050,memoria lbanch,12/10/2016,424347,470.83,NET,Codec Facilities Ltd,14338Y
Gloucester City Council,23UE,Development Management,PT200,Fees For Services Received,5350,temp staff w/c 19/9/16,12/10/2016,424249,1480,NET,The Oyster Partnership Limited,14900T
Gloucester City Council,23UE,Development Management,PT200,Fees For Services Received,5350,temp staff w/c 12/9/16,12/10/2016,424211,1480,NET,The Oyster Partnership Limited,14900T
Gloucester City Council,23UE,Docks Complex - Services,RB100,Asbestos Management Plan,3003,HKP lift refurb works,12/10/2016,424458,125,NET,Gloucester Asbestos Ltd,00496K
Gloucester City Council,23UE,Financial Services,RT200,Fees For Services Received,5350,vat only invoice,12/10/2016,424365,0,NET,Wansbroughs Solicitors,55500F
Gloucester City Council,23UE,Flooding And Drainage,HE306,Maint Of Grounds - General,3030,Fern Close vegetation works,12/10/2016,424263,135,NET,Rdb Safety Boat Ltd,13507J
Gloucester City Council,23UE,Flooding And Drainage,HE306,Maint Of Grounds - General,3030,Wooton Brook clearance works,12/10/2016,424264,235,NET,Rdb Safety Boat Ltd,13507J
Gloucester City Council,23UE,Folk Museum,LM210,Advertising And Publicity,5702,YOUNG DESIGNER CAMPAIGN,12/10/2016,424252,300,NET,Third Floor Design Ltd,16420U
Gloucester City Council,23UE,Green Transport Policy,PJ130,Other Minor Supplies Services,5590,TOUR OF BRITAIN - DR BIKE,12/10/2016,424351,300,NET,Gloucestershire Bike Project,12778H
Gloucester City Council,23UE,Guildhall Bar And Caf�,LA210,Catering Provisions -Liquor,5111,Suremix & suregas,12/10/2016,424265,10.54,NET,Boc Ltd,59172L
Gloucester City Council,23UE,Guildhall Events,LA200,Fees For Services Received,5350,GUILDHALL OCT-NOV16 BROCHURE,12/10/2016,424276,382.5,NET,Glide Media,58829J
Gloucester City Council,23UE,Guildhall Events,LA200,Fees For Services Received,5350,OH BETTY,12/10/2016,424288,66,NET,Pershore Brewery,17234H
Gloucester City Council,23UE,Homelessness,CH120,Rents,3200,Caridas & Priory Mgmt JUL-SEP16,12/10/2016,424300,46250,NET,Gloucester City Homes,05244T
Gloucester City Council,23UE,Investment Property,RB500,Fire Smoke Detection System,3059,Eastgate market service,12/10/2016,424460,376,NET,Brakel Airvent Ltd,51073T
Gloucester City Council,23UE,Investment Property,RB500,Lift Maintenance,3051,BLACKFRIARS LIFT SERVICE,12/10/2016,424357,579.5,NET,Pickerings Europe Ltd,58816U
Gloucester City Council,23UE,Investment Property,RB500,Lift Maintenance,3051,Eastgate Market lift service,12/10/2016,424356,75,NET,Pickerings Europe Ltd,58816U
Gloucester City Council,23UE,Legal Services,RS200,Fees For Services Received,5350,One Legal costs,12/10/2016,424333,17451.1,NET,Tewkesbury Borough Council,43800C
Gloucester City Council,23UE,Members Support,RC300,Members Training,5535,culture tourism & sport conference 2017,12/10/2016,424298,299,NET,Local Government Association,11683F
Gloucester City Council,23UE,Planning Policy & Heritage,PT300,Basic Pay - Temporary Staff,2751,temp staff w/c 19/9/16,12/10/2016,424212,2339,NET,The Oyster Partnership Limited,14900T
Gloucester City Council,23UE,Pollution Control,HE300,Fees For Services Received,5350,vehicle collection,12/10/2016,423748,80,NET,Harry Buckland,16135W
Gloucester City Council,23UE,Pollution Control,HE300,Fees For Services Received,5350,vehicle collection,12/10/2016,423749,80,NET,Harry Buckland,16135W
Gloucester City Council,23UE,Pollution Control,HE300,Fees For Services Received,5350,vehicle disposal,12/10/2016,423750,80,NET,Harry Buckland,16135W
Gloucester City Council,23UE,Pollution Control,HE300,Fees For Services Received,5350,vehicle disposal,12/10/2016,423751,130,NET,Harry Buckland,16135W
Gloucester City Council,23UE,Senior Management Restructurin,RO200,Pension Contribs Incl Backf,2901,LGPS early retirement fees,12/10/2016,424405,30820.3,NET,Gloucestershire County Council,10614L
Gloucester City Council,23UE,Statutory Testing,RS310,Fees For Services Received,5350,works to Shopmobility fire alarm,12/10/2016,424346,380,NET,Allcoopers Ltd,52921E
Gloucester City Council,23UE,The Arbor,HC501,Catering Provisions -Food,5110,food,12/10/2016,423893,137.93,NET,Janes Pantry,24500W
Gloucester City Council,23UE,The Arbor,HC501,Catering Provisions -Food,5110,food,12/10/2016,424403,80.43,NET,Janes Pantry,24500W
Gloucester City Council,23UE,The Arbor,HC501,Catering Provisions -Food,5110,food,12/10/2016,424408,168.05,NET,Janes Pantry,24500W
Gloucester City Council,23UE,The Arbor,HC501,Cleaning Materials,3600,Arbor sanitary disposal unit,12/10/2016,423773,17.28,NET,Minster Cleaning Services,02158R
Gloucester City Council,23UE,The Arbor,HC501,Cleaning Materials,3600,Arbor sanitary disposal units,12/10/2016,423774,34.56,NET,Minster Cleaning Services,02158R
Gloucester City Council,23UE,The Arbor,HC501,Cleaning Materials,3600,Supply of disposal unit,12/10/2016,422650,17.28,NET,Minster Cleaning Services,02158R
Gloucester City Council,23UE,The Arbor,HC501,Cleaning Materials,3600,Supply of disposal units,12/10/2016,422649,34.56,NET,Minster Cleaning Services,02158R
Gloucester City Council,23UE,Vehicles,RS140,Fuel,4012,vehicle fuel,12/10/2016,424355,207.6,NET,Allstar Business Solutions Ltd (Arval),06594A
Gloucester City Council,23UE,Vehicles,RS140,Fuel,4012,vehicle fuel,12/10/2016,424364,107.83,NET,Allstar Business Solutions Ltd (Arval),06594A
Gloucester City Council,23UE,Aspire Admin Charges,LC105,Contracted Services,6970,OCT16 management fees,13/10/2016,424593,38125.58,NET,Aspire Sports & Cultural Trust,08135V
Gloucester City Council,23UE,Asset Management,RS300,Basic Pay - Temporary Staff,2751,consultancy services SEPT16,13/10/2016,424825,7300,NET,Ardley Associates,09369F
Gloucester City Council,23UE,REDACTED,REDACTED,REDACTED,REDACTED,REDACTED,13/10/2016,REDACTED,506,NET,REDACTED,REDACTED
Gloucester City Council,23UE,Blackfriars,LA609,General Repair/Maint Buildings,3000,Blackfriars works,13/10/2016,424597,83.7,NET,Gloucester Locksmiths,18160C
Gloucester City Council,23UE,Blackfriars,LA609,Hire Of Equipment,5020,hire 1/4/16,13/10/2016,424815,152,NET,Valley Furniture Hire Ltd,08324P
Gloucester City Council,23UE,Blackfriars Weddings,LA220,Hire Of Equipment,5020,OCT16 hire,13/10/2016,424806,59.5,NET,Valley Furniture Hire Ltd,08324P
Gloucester City Council,23UE,Business Transformation & Tech,RT700,Computer Software Maintenance,5427,NLIS Connector Upgrade,13/10/2016,424588,950,NET,Idox Group,07229U
Gloucester City Council,23UE,Cemeteries,HC300,Basic Pay - Temporary Staff,2751,temp staff,13/10/2016,424602,263.93,NET,Premiere Employment Group Ltd,55468Z
Gloucester City Council,23UE,Cemeteries,HC300,Basic Pay - Temporary Staff,2751,temp staff,13/10/2016,424603,351.9,NET,Premiere Employment Group Ltd,55468Z
Gloucester City Council,23UE,Cemeteries,HC300,Basic Pay - Temporary Staff,2751,temp staff w/e 18/9/16,13/10/2016,424342,310.85,NET,Premiere Employment Group Ltd,55468Z
Gloucester City Council,23UE,Cemeteries,HC300,Basic Pay - Temporary Staff,2751,temp staff w/e 25/9,13/10/2016,424262,439.88,NET,Premiere Employment Group Ltd,55468Z
Gloucester City Council,23UE,Cemeteries,HC300,Basic Pay - Temporary Staff,2751,temp staff w/e 18/9/16,13/10/2016,424341,416.42,NET,Premiere Employment Group Ltd,55468Z
Gloucester City Council,23UE,Cemeteries,HC300,Basic Pay - Temporary Staff,2751,temp staff w/e 25/9/16,13/10/2016,424257,416.42,NET,Premiere Employment Group Ltd,55468Z
Gloucester City Council,23UE,Cemeteries,HC300,Maint Of Grounds - General,3030,plywood,13/10/2016,424585,415.8,NET,Millington & Ramstedt Ltd,29815S
Gloucester City Council,23UE,Cemeteries,HC300,Operational Materials,5070,Crem carpets,13/10/2016,424772,3230,NET,Chlodel Carpets & Flooring Ltd,12596S
Gloucester City Council,23UE,Cemeteries,HC300,Routine R And M - Vehicles,4011,brushcutter repair,13/10/2016,424760,49.49,NET,Garden Machinery Gloucester,55641K
Gloucester City Council,23UE,Cemeteries,HC300,Routine R And M - Vehicles,4011,repairs,13/10/2016,424765,54.89,NET,Garden Machinery Gloucester,55641K
Gloucester City Council,23UE,Cemeteries,HC300,Routine R And M - Vehicles,4011,replacement beacon,13/10/2016,424761,44.95,NET,Garden Machinery Gloucester,55641K
Gloucester City Council,23UE,Cemeteries,HC300,Routine R And M - Vehicles,4011,stone saw service,13/10/2016,424818,87.6,NET,Garden Machinery Gloucester,55641K
Gloucester City Council,23UE,City Museum And Art Gallery,LM200,Advertising And Publicity,5702,Jul-Dec16 events guide,13/10/2016,424793,659.63,NET,Glide Media,58829J
Gloucester City Council,23UE,City Museum And Art Gallery,LM200,Exhibits And Collections,5038,TUDOR CHILD EXHIBITION,13/10/2016,424790,1700,NET,The Tudor Tailor,16393V
Gloucester City Council,23UE,City Museum And Art Gallery,LM200,Printing,5300,Whats on booklet,13/10/2016,420748,1446.5,NET,Paddock Print,03014H
Gloucester City Council,23UE,City Museum And Art Gallery,LM200,Publications For Sale,5064,goods for resale,13/10/2016,424677,196,NET,Edu-Sci Ltd,14383T
Gloucester City Council,23UE,City Museum Catering,LM202,Catering Provisions -Food,5110,SEP16 rental,13/10/2016,424656,135,NET,La Spaziale Uk Ltd,11823P
Gloucester City Council,23UE,Civica Admin Charges,RT105,Postages,5400,acct 0870585007 post 12/9 - 23/9,13/10/2016,424367,1074.79,NET,Royal Mail S.Wales & South West,35830S
Gloucester City Council,23UE,Civic Admin And Hospitality,RC210,Hospitality,5122,plaque,13/10/2016,424674,57.5,NET,Trophy World,44734E
Gloucester City Council,23UE,Civic Admin And Hospitality,RC210,Hospitality,5122,presentation photo,13/10/2016,424673,30,NET,Geoff C Cook Picture Framing,58727U
Gloucester City Council,23UE,Contact Centre,RB300,Postages,5400,envelopes,13/10/2016,424591,151.15,NET,Encore Envelopes Ltd,13782H
Gloucester City Council,23UE,Contact Centre,RB300,Postages,5400,envelopes,13/10/2016,424747,164.72,NET,Encore Envelopes Ltd,13782H
Gloucester City Council,23UE,Contact Centre,RB300,Postages,5400,envelopes,13/10/2016,424748,119.6,NET,Encore Envelopes Ltd,13782H
Gloucester City Council,23UE,Contact Centre,RB300,Stationery,5302,xerox plot,13/10/2016,424781,60.45,NET,Stanford Marsh Ltd,51139M
Gloucester City Council,23UE,REDACTED,REDACTED,REDACTED,REDACTED,REDACTED,13/10/2016,REDACTED,250,NET,REDACTED,REDACTED
Gloucester City Council,23UE,REDACTED,REDACTED,REDACTED,REDACTED,REDACTED,13/10/2016,REDACTED,200,NET,REDACTED,REDACTED
Gloucester City Council,23UE,REDACTED,REDACTED,REDACTED,REDACTED,REDACTED,13/10/2016,REDACTED,480,NET,REDACTED,REDACTED
Gloucester City Council,23UE,Countryside Unit,LP201,Maint Of Grounds - General,3030,parts,13/10/2016,424817,120.28,NET,Ross Farm Machinery,02153B
Gloucester City Council,23UE,Crematorium,HC200,Other Minor Supplies Services,5590,digger service,13/10/2016,424657,644,NET,Garden Machinery Gloucester,55641K
Gloucester City Council,23UE,Crematorium,HC200,"Seeds, Trees, Plants, Shrubs",3028,plants,13/10/2016,424680,199.5,NET,Genus Plant Sourcing,14143S
Gloucester City Council,23UE,Development Management,PT200,Microfilming / Cd-Rom Storage,5330,archival storage,13/10/2016,424599,26.4,NET,Transmedia Technology Ltd,08635T
Gloucester City Council,23UE,Docks Complex - Catering Servs,RB110,Catering Provisions -Food,5110,food,13/10/2016,424658,171.54,NET,Bidvest Foodservice (3663),55585U
Gloucester City Council,23UE,Docks Complex - Catering Servs,RB110,Catering Provisions -Food,5110,food,13/10/2016,424659,36.96,NET,Total Produce Gloucester,12645E
Gloucester City Council,23UE,Docks Complex - Catering Servs,RB110,Catering Provisions -Food,5110,food,13/10/2016,424660,26,NET,Total Produce Gloucester,12645E
Gloucester City Council,23UE,Docks Complex - Catering Servs,RB110,Catering Provisions -Food,5110,food,13/10/2016,424661,183.63,NET,Bidvest Foodservice (3663),55585U
Gloucester City Council,23UE,Docks Complex - Catering Servs,RB110,Catering Provisions -Food,5110,food,13/10/2016,424662,335.11,NET,Bidvest Foodservice (3663),55585U
Gloucester City Council,23UE,Docks Complex - Catering Servs,RB110,Catering Provisions -Food,5110,food,13/10/2016,424664,13.68,NET,Total Produce Gloucester,12645E
Gloucester City Council,23UE,Docks Complex - Catering Servs,RB110,Catering Provisions -Food,5110,food,13/10/2016,424669,14.6,NET,Total Produce Gloucester,12645E
Gloucester City Council,23UE,Docks Complex - Catering Servs,RB110,Catering Provisions -Food,5110,food,13/10/2016,424670,13.84,NET,Total Produce Gloucester,12645E
Gloucester City Council,23UE,Docks Complex - Catering Servs,RB110,Catering Provisions -Food,5110,food,13/10/2016,424721,55.33,NET,Total Produce Gloucester,12645E
Gloucester City Council,23UE,Docks Complex - Catering Servs,RB110,Catering Provisions -Food,5110,food,13/10/2016,424722,69.2,NET,Total Produce Gloucester,12645E
Gloucester City Council,23UE,Docks Complex - Catering Servs,RB110,Catering Provisions -Food,5110,food,13/10/2016,424724,14.78,NET,Janes Pantry,24500W
Gloucester City Council,23UE,Docks Complex - Catering Servs,RB110,Catering Provisions -Food,5110,food,13/10/2016,424725,18.72,NET,Janes Pantry,24500W
Gloucester City Council,23UE,Docks Complex - Catering Servs,RB110,Catering Provisions -Food,5110,food,13/10/2016,424726,7.52,NET,Janes Pantry,24500W
Gloucester City Council,23UE,Docks Complex - Catering Servs,RB110,Catering Provisions -Food,5110,food,13/10/2016,424727,15.74,NET,Janes Pantry,24500W
Gloucester City Council,23UE,Docks Complex - Catering Servs,RB110,Catering Provisions -Food,5110,food,13/10/2016,424728,18.44,NET,Janes Pantry,24500W
Gloucester City Council,23UE,Docks Complex - Catering Servs,RB110,Catering Provisions -Food,5110,food,13/10/2016,424729,18.44,NET,Janes Pantry,24500W
Gloucester City Council,23UE,Docks Complex - Catering Servs,RB110,Catering Provisions -Food,5110,food,13/10/2016,424730,6.56,NET,Janes Pantry,24500W
Gloucester City Council,23UE,Docks Complex - Catering Servs,RB110,Catering Provisions -Food,5110,food,13/10/2016,424731,7.52,NET,Janes Pantry,24500W
Gloucester City Council,23UE,Docks Complex - Catering Servs,RB110,Catering Provisions -Food,5110,food,13/10/2016,424733,18.44,NET,Janes Pantry,24500W
Gloucester City Council,23UE,Docks Complex - Catering Servs,RB110,Catering Provisions -Food,5110,food,13/10/2016,424735,8.52,NET,Janes Pantry,24500W
Gloucester City Council,23UE,Docks Complex - Catering Servs,RB110,Catering Provisions -Food,5110,food,13/10/2016,424736,12.68,NET,Janes Pantry,24500W
Gloucester City Council,23UE,Docks Complex - Catering Servs,RB110,Catering Provisions -Food,5110,food,13/10/2016,424737,8.27,NET,Janes Pantry,24500W
Gloucester City Council,23UE,Docks Complex - Catering Servs,RB110,Catering Provisions -Food,5110,food,13/10/2016,424738,4.43,NET,Janes Pantry,24500W
Gloucester City Council,23UE,Docks Complex - Catering Servs,RB110,Catering Provisions -Food,5110,food,13/10/2016,424739,6.56,NET,Janes Pantry,24500W
Gloucester City Council,23UE,Docks Complex - Catering Servs,RB110,Catering Provisions -Food,5110,food,13/10/2016,424740,18.44,NET,Janes Pantry,24500W
Gloucester City Council,23UE,Docks Complex - Catering Servs,RB110,Catering Provisions -Food,5110,food,13/10/2016,424741,8.27,NET,Janes Pantry,24500W
Gloucester City Council,23UE,Docks Complex - Catering Servs,RB110,Catering Provisions -Food,5110,food,13/10/2016,424749,46.94,NET,Total Produce Gloucester,12645E
Gloucester City Council,23UE,Docks Complex - Catering Servs,RB110,Catering Provisions -Food,5110,food,13/10/2016,424750,33.51,NET,Total Produce Gloucester,12645E
Gloucester City Council,23UE,Docks Complex - Catering Servs,RB110,Catering Provisions -Food,5110,food,13/10/2016,424751,20.53,NET,Total Produce Gloucester,12645E
Gloucester City Council,23UE,Docks Complex - Catering Servs,RB110,Catering Provisions -Food,5110,milk,13/10/2016,424663,4.32,NET,Total Produce Gloucester,12645E
Gloucester City Council,23UE,Docks Complex - Catering Servs,RB110,Catering Provisions -Food,5110,milk,13/10/2016,424671,7.2,NET,Total Produce Gloucester,12645E
Gloucester City Council,23UE,Docks Complex - Catering Servs,RB110,Catering Provisions -Food,5110,milk,13/10/2016,424723,4.32,NET,Total Produce Gloucester,12645E
Gloucester City Council,23UE,Docks Complex - Catering Servs,RB110,Sale Of Council Products,9220,food,13/10/2016,424742,25.63,NET,Janes Pantry,24500W
Gloucester City Council,23UE,Docks Complex - Catering Servs,RB110,Sale Of Council Products,9220,food,13/10/2016,424743,25.63,NET,Janes Pantry,24500W
Gloucester City Council,23UE,Docks Complex - Services,RB100,Catering Provisions -Food,5110,food,13/10/2016,424732,11.11,NET,Janes Pantry,24500W
Gloucester City Council,23UE,Docks Complex - Services,RB100,Cleaning / Domestic Equipment,5011,North Warehouse external cleaning,13/10/2016,422103,225,NET,H & W Facilities Management Limited,09142N
Gloucester City Council,23UE,Docks Complex - Telephones,RB120,Mobile Phones,5409,Charges,13/10/2016,422724,336.91,NET,O2 Uk,16206Y
Gloucester City Council,23UE,Docks Complex - Telephones,RB120,Mobile Phones,5409,Charges August 2016,13/10/2016,422732,1031.57,NET,O2 Uk,16206Y
Gloucester City Council,23UE,Docks Complex - Telephones,RB120,Mobile Phones,5409,samsung Galaxy J3,13/10/2016,424311,209.36,NET,O2 Uk,16206Y
Gloucester City Council,23UE,Dog Warden,HE400,Fees For Services Received,5350,AUG16 stray dog service,13/10/2016,424404,2181.86,NET,Bromsgrove District Council,15754U
Gloucester City Council,23UE,Financial Services,RT200,Basic Pay - Temporary Staff,2751,temp staff,13/10/2016,424697,650.46,NET,Hays Specialist Recruitment Ltd,55516P
Gloucester City Council,23UE,Financial Services,RT200,Basic Pay - Temporary Staff,2751,temp staff,13/10/2016,424698,650.47,NET,Hays Specialist Recruitment Ltd,55516P
Gloucester City Council,23UE,Financial Services,RT200,Basic Pay - Temporary Staff,2751,temp staff,13/10/2016,424716,650.47,NET,Hays Specialist Recruitment Ltd,55516P
Gloucester City Council,23UE,Folk Museum,LM210,Advertising And Publicity,5702,Jul-Dec16 events guide,13/10/2016,424793,659.62,NET,Glide Media,58829J
Gloucester City Council,23UE,Folk Museum,LM210,Printing,5300,Whats on booklet,13/10/2016,420748,1446.5,NET,Paddock Print,03014H
Gloucester City Council,23UE,Folk Museum,LM210,Publications For Sale,5064,goods for resale,13/10/2016,424594,160.74,NET,Half Moon Bay Ltd,08240F
Gloucester City Council,23UE,Folk Museum,LM210,Publications For Sale,5064,goods for resale,13/10/2016,424595,113.52,NET,Half Moon Bay Ltd,08240F
Gloucester City Council,23UE,General Drainage Works,PY241,Contract Payments,0020,AUG16 project engineering,13/10/2016,424795,3072.2,CAP,Ecostep Ltd,15511Z
Gloucester City Council,23UE,General Drainage Works,PY241,Contract Payments,0020,JUL16 project engineering,13/10/2016,424794,4489.7,CAP,Ecostep Ltd,15511Z
Gloucester City Council,23UE,General Works Fund,RY203,Consultants Fees,0030,CAD fees,13/10/2016,424682,532,CAP,Graham Parker Environmental Design Solutions,16390B
Gloucester City Council,23UE,Gloucester Guildhall,LA100,General Repair/Maint Buildings,3000,washer service,13/10/2016,423752,303.58,NET,Armstrong Commercial Laundry Systems,10886Y
Gloucester City Council,23UE,Grants To Voluntary Sector,FG100,Grants To Advice Centres,7100,members grant,13/10/2016,424696,1000,NET,Coney Hill Rfc Ltd,17224L
Gloucester City Council,23UE,Grants To Voluntary Sector,FG100,Members Allocation Fund,7100F,members grant 2016/17,13/10/2016,424692,2000,NET,Beaufort Sport Centre,17208J
Gloucester City Council,23UE,Guildhall Bar And Caf�,LA210,Catering Provisions -Food,5110,food,13/10/2016,424713,134.95,NET,Woodward Foodservice,10714F
Gloucester City Council,23UE,Guildhall Bar And Caf�,LA210,Catering Provisions -Food,5110,food,13/10/2016,424714,109.54,NET,Woodward Foodservice,10714F
Gloucester City Council,23UE,Guildhall Bar And Caf�,LA210,Catering Provisions -Food,5110,food,13/10/2016,424715,106.03,NET,Woodward Foodservice,10714F
Gloucester City Council,23UE,Guildhall Bar And Caf�,LA210,Catering Provisions -Food,5110,milk,13/10/2016,424605,4.76,NET,Total Produce Gloucester,12645E
Gloucester City Council,23UE,Guildhall Bar And Caf�,LA210,Catering Provisions -Food,5110,milk,13/10/2016,424608,4.76,NET,Total Produce Gloucester,12645E
Gloucester City Council,23UE,Guildhall Bar And Caf�,LA210,Catering Provisions -Food,5110,milk,13/10/2016,424609,4.76,NET,Total Produce Gloucester,12645E
Gloucester City Council,23UE,Guildhall Bar And Caf�,LA210,Catering Provisions -Food,5110,plastic glasses,13/10/2016,424651,194,NET,Cotswold Vending Services Ltd,16454A
Gloucester City Council,23UE,Guildhall Bar And Caf�,LA210,Catering Provisions -Liquor,5111,drinks,13/10/2016,424648,166.18,NET,Cellar Supplies Cheltenham Ltd,01563L
Gloucester City Council,23UE,Guildhall Bar And Caf�,LA210,Catering Provisions -Liquor,5111,drinks,13/10/2016,424649,1206.18,NET,Cellar Supplies Cheltenham Ltd,01563L
Gloucester City Council,23UE,Guildhall Bar And Caf�,LA210,Fees For Services Received,5350,consultancy fees,13/10/2016,424691,1500,NET,Mya Consulting,15843U
Gloucester City Council,23UE,Guildhall Cinema,LA202,Hire Of Equipment,5020,film transport,13/10/2016,424804,219.59,NET,Nft Logistics Ltd,13505N
Gloucester City Council,23UE,Guildhall Cinema,LA202,Hire Of Equipment,5020,film transport,13/10/2016,424805,19.5,NET,Nft Logistics Ltd,13505N
Gloucester City Council,23UE,REDACTED,REDACTED,REDACTED,REDACTED,REDACTED,13/10/2016,REDACTED,114.33,NET,REDACTED,REDACTED
Gloucester City Council,23UE,Guildhall Events,LA200,Advertising And Publicity,5702,Concourse artwork,13/10/2016,424769,63.23,NET,Xtreme Graphics Ltd,13910Z
Gloucester City Council,23UE,REDACTED,REDACTED,REDACTED,REDACTED,REDACTED,13/10/2016,REDACTED,500,NET,REDACTED,REDACTED
Gloucester City Council,23UE,REDACTED,REDACTED,REDACTED,REDACTED,REDACTED,13/10/2016,REDACTED,0,NET,REDACTED,REDACTED
Gloucester City Council,23UE,REDACTED,REDACTED,REDACTED,REDACTED,REDACTED,13/10/2016,REDACTED,0,NET,REDACTED,REDACTED
Gloucester City Council,23UE,REDACTED,REDACTED,REDACTED,REDACTED,REDACTED,13/10/2016,REDACTED,0,NET,REDACTED,REDACTED
Gloucester City Council,23UE,REDACTED,REDACTED,REDACTED,REDACTED,REDACTED,13/10/2016,REDACTED,0,NET,REDACTED,REDACTED
Gloucester City Council,23UE,Guildhall Events,LA200,Fees For Services Received,5350,drinks,13/10/2016,424708,78,NET,Mates Cider And Perry Company,17232M
Gloucester City Council,23UE,Guildhall Events,LA200,Fees For Services Received,5350,drinks,13/10/2016,424768,152,NET,Force Brewery Limited,17233K
Gloucester City Council,23UE,Guildhall Events,LA200,Fees For Services Received,5350,Glostoberfest ale,13/10/2016,424643,447.29,NET,The Pelican Inn,16184G
Gloucester City Council,23UE,REDACTED,REDACTED,REDACTED,REDACTED,REDACTED,13/10/2016,REDACTED,160,NET,REDACTED,REDACTED
Gloucester City Council,23UE,REDACTED,REDACTED,REDACTED,REDACTED,REDACTED,13/10/2016,REDACTED,300,NET,REDACTED,REDACTED
Gloucester City Council,23UE,REDACTED,REDACTED,REDACTED,REDACTED,REDACTED,13/10/2016,REDACTED,300,NET,REDACTED,REDACTED
Gloucester City Council,23UE,Hackney Carriages,HL100,Fees For Services Received,5350,DBS June 2016,13/10/2016,421070,704,NET,Disclosure And Barring Service,00119W
Gloucester City Council,23UE,REDACTED,REDACTED,REDACTED,REDACTED,REDACTED,13/10/2016,REDACTED,400,NET,REDACTED,REDACTED
Gloucester City Council,23UE,Herbert Reception Upgrade,RY201,Consultants Fees,0030,Crem CDM,13/10/2016,424601,375,CAP,Goddard Consulting Llp,10598G
Gloucester City Council,23UE,Hmo Licences,HE520,Operational Equipment <5000,5012,OCT16-OCT17 support,13/10/2016,424600,99,NET,Ferret Information Systems Ltd,15035L
Gloucester City Council,23UE,Hmo Licences,HE520,Operational Equipment <5000,5012,service DIG system,13/10/2016,424812,380.65,NET,Gordon Morris Ltd,59508Z
Gloucester City Council,23UE,Homelessness,CH120,Board And Lodging,5515,interim accommodation,13/10/2016,424689,62,NET,Stroud District Council,42500D
Gloucester City Council,23UE,Homelessness,CH120,Fees For Services Received,5350,medical report,13/10/2016,424701,20.5,NET,Saintbridge Surgery,58374F
Gloucester City Council,23UE,Homelessness,CH120,Fees For Services Received,5350,medical report,13/10/2016,424719,20.5,NET,Bartongate Surgery,05680S
Gloucester City Council,23UE,Homelessness,CH120,Fees For Services Received,5350,medical reports,13/10/2016,424650,515,NET,Now Medical,03468L
Gloucester City Council,23UE,Homelessness,CH120,Fees For Services Received,5350,out of hours,13/10/2016,424744,25,NET,Orbis Protect Limited*,56370J
Gloucester City Council,23UE,Homelessness,CH120,Fees For Services Received,5350,staff devt programme 16/17,13/10/2016,424762,100,NET,District Councils Network,16387P
Gloucester City Council,23UE,Homelessness,CH120,Removal And Storage Fees,5513,storage fees,13/10/2016,424654,479.89,NET,Advanced Removals & Storage Ltd,57142R
Gloucester City Council,23UE,Homelessness,CH120,Removal And Storage Fees,5513,storage fees,13/10/2016,424655,300,NET,Advanced Removals & Storage Ltd,57142R
Gloucester City Council,23UE,Homelessness,CH120,Removal And Storage Fees,5513,storage fees,13/10/2016,424678,523.13,NET,Advanced Removals & Storage Ltd,57142R
Gloucester City Council,23UE,Homelessness,CH120,Removal And Storage Fees,5513,storage fees,13/10/2016,424679,77.14,NET,Advanced Removals & Storage Ltd,57142R
Gloucester City Council,23UE,Homelessness,CH120,Removal And Storage Fees,5513,storage fees,13/10/2016,424699,39.11,NET,Advanced Removals & Storage Ltd,57142R
Gloucester City Council,23UE,Homelessness,CH120,Removal And Storage Fees,5513,storage fees,13/10/2016,424700,39.11,NET,Advanced Removals & Storage Ltd,57142R
Gloucester City Council,23UE,Homelessness,CH120,Removal And Storage Fees,5513,storage fees,13/10/2016,424703,117.32,NET,Advanced Removals & Storage Ltd,57142R
Gloucester City Council,23UE,Homelessness,CH120,Removal And Storage Fees,5513,storage fees,13/10/2016,424704,154.29,NET,Advanced Removals & Storage Ltd,57142R
Gloucester City Council,23UE,Homelessness,CH120,Removal And Storage Fees,5513,storage fees,13/10/2016,424705,154.29,NET,Advanced Removals & Storage Ltd,57142R
Gloucester City Council,23UE,Homelessness,CH120,Removal And Storage Fees,5513,storage fees,13/10/2016,424770,78.21,NET,Advanced Removals & Storage Ltd,57142R
Gloucester City Council,23UE,Homelessness,CH120,Removal And Storage Fees,5513,storage fees,13/10/2016,424775,302.14,NET,Advanced Removals & Storage Ltd,57142R
Gloucester City Council,23UE,Homelessness,CH120,Removal And Storage Fees,5513,storage fees,13/10/2016,424776,182.57,NET,Advanced Removals & Storage Ltd,57142R
Gloucester City Council,23UE,Homelessness,CH120,Removal And Storage Fees,5513,storage fees,13/10/2016,424777,78.21,NET,Advanced Removals & Storage Ltd,57142R
Gloucester City Council,23UE,Homelessness,CH120,Removal And Storage Fees,5513,storage fees,13/10/2016,424778,39.11,NET,Advanced Removals & Storage Ltd,57142R
Gloucester City Council,23UE,Homelessness,CH120,Removal And Storage Fees,5513,storage fees,13/10/2016,424779,39.11,NET,Advanced Removals & Storage Ltd,57142R
Gloucester City Council,23UE,Homelessness,CH120,Removal And Storage Fees,5513,storage fees,13/10/2016,424782,39.11,NET,Advanced Removals & Storage Ltd,57142R
Gloucester City Council,23UE,Homelessness,CH120,Removal And Storage Fees,5513,storage fees,13/10/2016,424783,38.57,NET,Advanced Removals & Storage Ltd,57142R
Gloucester City Council,23UE,Homelessness,CH120,Removal And Storage Fees,5513,storage fees,13/10/2016,424784,219.86,NET,Advanced Removals & Storage Ltd,57142R
Gloucester City Council,23UE,Homelessness,CH120,Removal And Storage Fees,5513,storage fees,13/10/2016,424785,312.86,NET,Advanced Removals & Storage Ltd,57142R
Gloucester City Council,23UE,Homelessness,CH120,Removal And Storage Fees,5513,storage fees,13/10/2016,424786,138.86,NET,Advanced Removals & Storage Ltd,57142R
Gloucester City Council,23UE,Homelessness,CH120,Removal And Storage Fees,5513,storage fees,13/10/2016,424787,77.14,NET,Advanced Removals & Storage Ltd,57142R
Gloucester City Council,23UE,Homelessness,CH120,Removal And Storage Fees,5513,storage fees,13/10/2016,424788,156.43,NET,Advanced Removals & Storage Ltd,57142R
Gloucester City Council,23UE,Homelessness,CH120,Removal And Storage Fees,5513,storage fees,13/10/2016,424789,78.21,NET,Advanced Removals & Storage Ltd,57142R
Gloucester City Council,23UE,Homelessness Prevention,CH122,Grants To Advice Centres,7100,installation of target hardening,13/10/2016,424763,5000,NET,Safe Partnership Ltd,11195A
Gloucester City Council,23UE,Housing Works In Default,HD500,Clearance And Cleansing Fees,5384,GAINSBOROUGH DRIVE WORKS,13/10/2016,424824,875,NET,Rj Contracting (Environmental) Ltd,07429H
Gloucester City Council,23UE,Investment Property,RB500,Consultants Fees,5349,Parton Road valuation works,13/10/2016,424323,2800,NET,Gva Grimley,56359W
Gloucester City Council,23UE,Investment Property,RB500,Fire Smoke Detection System,3059,Crem service,13/10/2016,424459,361,NET,Brakel Airvent Ltd,51073T
Gloucester City Council,23UE,Licences,HE510,Fees For Services Received,5350,inspection visits,13/10/2016,424764,48.33,NET,Cheltenham Equine Vets,17230S
Gloucester City Council,23UE,REDACTED,REDACTED,REDACTED,REDACTED,REDACTED,13/10/2016,REDACTED,100,NET,REDACTED,REDACTED
Gloucester City Council,23UE,Members Support,RC300,Hospitality,5122,food,13/10/2016,424797,45.84,NET,Janes Pantry,24500W
Gloucester City Council,23UE,Members Support,RC300,Members Training,5535,Chairing skills workshop,13/10/2016,424717,600,NET,Improvement & Development Agency,55793J
Gloucester City Council,23UE,Members Support,RC300,Operational Equipment <5000,5012,engraved name plates,13/10/2016,424720,70,NET,The Gloucester Cobbler,10005X
Gloucester City Council,23UE,Parks Contract Management,LP100,Maint Of Grounds - General,3030,alma place & climbing wall repairs,13/10/2016,424336,275,NET,Greenfields Garden Services Ltd,48130G
Gloucester City Council,23UE,Planning Policy & Heritage,PT300,Basic Pay - Temporary Staff,2751,temp staff,13/10/2016,424706,2271,NET,The Oyster Partnership Limited,14900T
Gloucester City Council,23UE,Printing,RP103,Printing,5300,printing,13/10/2016,424590,385.76,NET,Alpha Colour Printers Ltd,00945B
Gloucester City Council,23UE,Ranger Centre/Netheridge Wks,RY167,Contract Payments,0020,goods,13/10/2016,424684,111.02,CAP,Screwfix Direct,54672H
Gloucester City Council,23UE,Registration Of Electors,RS400,Fees For Services Received,5350,postage ac 0870585031,13/10/2016,424774,7342.01,NET,Royal Mail S.Wales & South West,35830S
Gloucester City Council,23UE,Rehousing,CH111,Fees For Services Received,5350,medical report,13/10/2016,424702,20.5,NET,Rosebank Health,03041E
Gloucester City Council,23UE,Rehousing,CH111,Fees For Services Received,5350,medical report,13/10/2016,424711,20.5,NET,Bartongate Surgery,05680S
Gloucester City Council,23UE,Rehousing,CH111,Fees For Services Received,5350,medical reports,13/10/2016,424653,20.5,NET,Rosebank Health,03041E
Gloucester City Council,23UE,Retail Market - Landlord,HM300,Operational Equipment <5000,5012,CCTV SERVICE 2016-17,13/10/2016,424816,175,NET,R Creed T/A Creed Security,14710A
Gloucester City Council,23UE,Shopmobility,PE200,Maintenance Of Equipment,5030,scooter services,13/10/2016,424368,96,NET,Disabled Care & Mobility,12675V
Gloucester City Council,23UE,Shopmobility,PE200,Maintenance Of Equipment,5030,shopmobility OCT16,13/10/2016,424337,12.91,NET,Ocs Group Uk Limited T/A Cannon,06506A
Gloucester City Council,23UE,Southgate Moorings,RB537,Repair/Maint Of Fixed Plant,3006,Strada transfer cannister,13/10/2016,424436,159,NET,Parkeon Ltd,03238G
Gloucester City Council,23UE,Statutory Testing,RS310,Stat Tests,3025,pat testing,13/10/2016,424339,1682.99,NET,Peak Hire Limited,07936J
Gloucester City Council,23UE,The Arbor,HC501,Catering Provisions -Food,5110,food,13/10/2016,424803,23.45,NET,Total Produce Gloucester,12645E
Gloucester City Council,23UE,The Fleece,RB530,General Repair/Maint Buildings,3000,commercial road scaff hire,13/10/2016,424753,387,NET,King Scaffolding Ltd,16240Y
Gloucester City Council,23UE,Warm And Well,CY048,Energy Effic Landlord Accred,0078,WARM & WELL SLA,13/10/2016,424308,5000,CAP,Severn Wye Energy Agency Ltd,56930P
Gloucester City Council,23UE,Youth Grant 2011/12,FP107,Grants,7100C,youth grant 2016/17,13/10/2016,424693,1662,NET,15th Gloucester (St Peters) Sea Scouts,15873J
Gloucester City Council,23UE,Youth Grant 2011/12,FP107,Grants,7100C,youth grant 2016/17,13/10/2016,424694,1400,NET,The Chamwell Centre Charity,17236D
Gloucester City Council,23UE,Youth Grant 2011/12,FP107,Grants To Advice Centres,7100,youth grant 2016/17,13/10/2016,424695,650,NET,Ts Queen Elizabeth Maritime Cadets,17237B
Gloucester City Council,23UE,Cemeteries,HC300,Trade Refuse Tipping Fees,6297,skip exchange SEP16,14/10/2016,424400,320,NET,Allstone Sand & Gravel Aggregates Ltd,00940M
Gloucester City Council,23UE,Cems/Crems Admin,HC100,Office Equipment <5000,5010,A4 diaries,14/10/2016,424796,6.99,NET,Office Star Group Ltd,55874H
Gloucester City Council,23UE,Cems/Crems Admin,HC100,Office Equipment <5000,5010,ink cartridges,14/10/2016,424646,493.56,NET,Office Star Group Ltd,55874H
Gloucester City Council,23UE,Community Safety Projects,FP500,Hospitality,5122,room hire 15/9/16,14/10/2016,424246,48.4,NET,Aspire Sports & Cultural Trust,08135V
Gloucester City Council,23UE,Contact Centre,RB300,Stationery,5302,stationery,14/10/2016,424988,28.72,NET,Lyreco Uk Ltd,11746G
Gloucester City Council,23UE,Contact Centre,RB300,Stationery,5302,stationery,14/10/2016,424989,54.08,NET,Lyreco Uk Ltd,11746G
Gloucester City Council,23UE,Contact Centre,RB300,Stationery,5302,year planner,14/10/2016,424991,2.64,NET,Lyreco Uk Ltd,11746G
Gloucester City Council,23UE,Crematorium,HC200,Oper Leases - Equipment,5029,church candles,14/10/2016,424244,54.4,NET,The Candlelight Company,10270X
Gloucester City Council,23UE,Crematorium,HC200,Repair/Maint Of Monuments,3004,sanctum tablet,14/10/2016,424354,123,NET,The Columbaria Company,55078T
Gloucester City Council,23UE,Folk Museum,LM210,Exhibits And Collections,5038,prosorb cassettes,14/10/2016,422540,476.95,NET,Preservation Equipment Ltd,16494M
Gloucester City Council,23UE,REDACTED,REDACTED,REDACTED,REDACTED,REDACTED,14/10/2016,REDACTED,300,NET,REDACTED,REDACTED
Gloucester City Council,23UE,REDACTED,REDACTED,REDACTED,REDACTED,REDACTED,14/10/2016,REDACTED,1000,NET,REDACTED,REDACTED
Gloucester City Council,23UE,Guildhall Lettings,LA400,Subscriptions,5600,online adverts,14/10/2016,424921,699,NET,Venuefinder.Com,17201Z
Gloucester City Council,23UE,Internal Health & Safety,EH110,Other Minor Supplies Services,5590,first aid supplies,14/10/2016,424592,49.65,NET,Selles Medical Ltd,50592W
Gloucester City Council,23UE,Members Support,RC300,Other Minor Supplies Services,5590,picture framing,14/10/2016,424920,165,NET,Geoff C Cook Picture Framing,58727U
Gloucester City Council,23UE,The Arbor,HC501,Catering Provisions -Food,5110,food,14/10/2016,424986,222.02,NET,Bidvest Foodservice (3663),55585U
Gloucester City Council,23UE,The Arbor,HC501,Catering Provisions -Food,5110,food,14/10/2016,424987,194.61,NET,Bidvest Foodservice (3663),55585U
Gloucester City Council,23UE,The Arbor,HC501,Catering Provisions -Food,5110,food,14/10/2016,424997,662.08,NET,Bidvest Foodservice (3663),55585U
Gloucester City Council,23UE,The Arbor,HC501,Catering Provisions -Food,5110,food,14/10/2016,424998,260,NET,Bidvest Foodservice (3663),55585U
Gloucester City Council,23UE,The Arbor,HC501,Catering Provisions -Food,5110,food,14/10/2016,424999,224.73,NET,Bidvest Foodservice (3663),55585U
Gloucester City Council,23UE,The Arbor,HC501,Catering Provisions -Food,5110,food,14/10/2016,425009,195.36,NET,Bidvest Foodservice (3663),55585U
Gloucester City Council,23UE,The Arbor,HC501,Catering Provisions -Food,5110,food,14/10/2016,425010,130,NET,Bidvest Foodservice (3663),55585U
Gloucester City Council,23UE,The Arbor,HC501,Catering Provisions -Food,5110,food,14/10/2016,425011,305.15,NET,Bidvest Foodservice (3663),55585U
Gloucester City Council,23UE,The Arbor,HC501,Catering Provisions -Food,5110,food,14/10/2016,425013,35.16,NET,Total Produce Gloucester,12645E
Gloucester City Council,23UE,The Arbor,HC501,Catering Provisions -Food,5110,food,14/10/2016,425014,48.15,NET,Total Produce Gloucester,12645E
Gloucester City Council,23UE,The Arbor,HC501,Catering Provisions -Food,5110,food,14/10/2016,425018,76.07,NET,Total Produce Gloucester,12645E
Gloucester City Council,23UE,The Arbor,HC501,Catering Provisions -Food,5110,food,14/10/2016,425021,70.09,NET,Total Produce Gloucester,12645E
Gloucester City Council,23UE,The Arbor,HC501,Catering Provisions -Food,5110,food,14/10/2016,425022,74.35,NET,Total Produce Gloucester,12645E
Gloucester City Council,23UE,The Arbor,HC501,Catering Provisions -Liquor,5111,drinks,14/10/2016,424993,192.41,NET,Cellar Supplies Cheltenham Ltd,01563L
Gloucester City Council,23UE,Cemeteries,HC300,Routine R And M - Vehicles,4011,service/repair,17/10/2016,424584,28.13,NET,Machine Mart,56123E
Gloucester City Council,23UE,Council Streetcare Team,HI101,Conference/Meeting Expenses,5510,Conference 2016,17/10/2016,424343,50,NET,Amenity Forum Ltd,17210Y
Gloucester City Council,23UE,Guildhall Bar And Caf�,LA210,Catering Provisions -Food,5110,food,17/10/2016,424406,109.6,NET,Janes Pantry,24500W
Gloucester City Council,23UE,Hmo Licences,HE520,Advertising And Publicity,5702,adverts,17/10/2016,424606,876.48,NET,Local World Ltd,08556P
Gloucester City Council,23UE,Kings Quarter,RY146,Contract Payments,0020,Bus Station excavation,17/10/2016,424996,9995,CAP,Cotswold Archaeology Ltd,09180E
Gloucester City Council,23UE,Pollution Control,HE300,Fees For Services Received,5350,vehicle disposal,17/10/2016,423747,80,NET,Harry Buckland,16135W
Gloucester City Council,23UE,Pollution Control,HE300,Fees For Services Received,5350,vehicle disposal,17/10/2016,424754,260,NET,Harry Buckland,16135W
Gloucester City Council,23UE,Pollution Control,HE300,Fees For Services Received,5350,vehicle disposal,17/10/2016,424755,150,NET,Harry Buckland,16135W
Gloucester City Council,23UE,Pollution Control,HE300,Fees For Services Received,5350,vehicle disposal,17/10/2016,424756,130,NET,Harry Buckland,16135W
Gloucester City Council,23UE,Pollution Control,HE300,Fees For Services Received,5350,vehicle disposal,17/10/2016,424757,300,NET,Harry Buckland,16135W
Gloucester City Council,23UE,Pollution Control,HE300,Fees For Services Received,5350,vehicle disposal,17/10/2016,424758,80,NET,Harry Buckland,16135W
Gloucester City Council,23UE,Pollution Control,HE300,Fees For Services Received,5350,vehicle disposal,17/10/2016,424759,80,NET,Harry Buckland,16135W
Gloucester City Council,23UE,The Arbor,HC501,Catering Provisions -Food,5110,food,17/10/2016,425007,57.9,NET,Bidvest Foodservice (3663),55585U
Gloucester City Council,23UE,The Arbor,HC501,Catering Provisions -Food,5110,food,17/10/2016,425012,23.25,NET,Total Produce Gloucester,12645E
Gloucester City Council,23UE,The Arbor,HC501,Catering Provisions -Food,5110,food,17/10/2016,425015,45.82,NET,Total Produce Gloucester,12645E
Gloucester City Council,23UE,The Arbor,HC501,Catering Provisions -Food,5110,food,17/10/2016,425016,35.39,NET,Total Produce Gloucester,12645E
Gloucester City Council,23UE,The Arbor,HC501,Catering Provisions -Food,5110,food,17/10/2016,425017,27.28,NET,Total Produce Gloucester,12645E
Gloucester City Council,23UE,The Arbor,HC501,Catering Provisions -Food,5110,food,17/10/2016,425020,79.3,NET,Total Produce Gloucester,12645E
Gloucester City Council,23UE,The Arbor,HC501,Catering Provisions -Food,5110,food,17/10/2016,425023,22.97,NET,Total Produce Gloucester,12645E
Gloucester City Council,23UE,The Arbor,HC501,Catering Provisions -Food,5110,food,17/10/2016,425024,84.44,NET,Total Produce Gloucester,12645E
Gloucester City Council,23UE,Aspire Admin Charges,LC105,Security Services Fees,5351,NOV16 cash handling,18/10/2016,424947,184.93,NET,G4s Cash Solutions (Uk) Ltd,04290V
Gloucester City Council,23UE,Blackfriars,LA609,Catering Provisions -Liquor,5111,drinks,18/10/2016,425074,8.99,NET,Cellar Supplies Cheltenham Ltd,01563L
Gloucester City Council,23UE,Blackfriars Weddings,LA220,Catering Provisions -Liquor,5111,Drinks,18/10/2016,425069,362.55,NET,Cellar Supplies Cheltenham Ltd,01563L
Gloucester City Council,23UE,REDACTED,REDACTED,REDACTED,REDACTED,REDACTED,18/10/2016,REDACTED,498,NET,REDACTED,REDACTED
Gloucester City Council,23UE,Business Transformation & Tech,RT700,Internet Service Provider Fees,5429,acct 513231401 OCT/NOV16,18/10/2016,424969,39,NET,Virgin Media Payments Ltd,09376J
Gloucester City Council,23UE,Business Transformation & Tech,RT700,Internet Service Provider Fees,5429,Broadband Sep - Oct 16,18/10/2016,423562,39,NET,Virgin Media Payments Ltd,09376J
Gloucester City Council,23UE,Business Transformation & Tech,RT700,Internet Service Provider Fees,5429,Cllr James Oct-Nov16,18/10/2016,424970,30,NET,Virgin Media Payments Ltd,09376J
Gloucester City Council,23UE,Business Transformation & Tech,RT700,Internet Service Provider Fees,5429,Cllr James Sep/Oct16,18/10/2016,423889,30,NET,Virgin Media Payments Ltd,09376J
Gloucester City Council,23UE,Business Transformation & Tech,RT700,Internet Service Provider Fees,5429,lift line charges,18/10/2016,424965,16.99,NET,Virgin Media Payments Ltd,09376J
Gloucester City Council,23UE,Business Transformation & Tech,RT700,Internet Service Provider Fees,5429,Line rental Sept-Oct 2016,18/10/2016,423862,16.99,NET,Virgin Media Payments Ltd,09376J
Gloucester City Council,23UE,Business Transformation & Tech,RT700,Telephones And Fax,5410,acct VP75978270,18/10/2016,424972,23.7,NET,Bt Payment Services Ltd,56283E
Gloucester City Council,23UE,Business Transformation & Tech,RT700,Telephones And Fax,5410,call charges,18/10/2016,424359,2570.75,NET,Gamma Business Communications,10260A
Gloucester City Council,23UE,Business Transformation & Tech,RT700,Telephones And Fax,5410,Call Charges August 2016,18/10/2016,423857,2554.64,NET,Gamma Business Communications,10260A
Gloucester City Council,23UE,Business Transformation & Tech,RT700,Telephones And Fax,5410,call charges SEPT-OCT16,18/10/2016,424932,2772.4,NET,Gamma Business Communications,10260A
Gloucester City Council,23UE,Business Transformation & Tech,RT700,Telephones And Fax,5410,Charges,18/10/2016,421208,36.6,NET,Bt Payment Services Ltd,56283E
Gloucester City Council,23UE,Business Transformation & Tech,RT700,Telephones And Fax,5410,leased line charges OCT16,18/10/2016,424925,3960.81,NET,Gamma Business Communications,10260A
Gloucester City Council,23UE,Business Transformation & Tech,RT700,Telephones And Fax,5410,leased line charges SEP16,18/10/2016,423792,3960.81,NET,Gamma Business Communications,10260A
Gloucester City Council,23UE,Business Transformation & Tech,RT700,Telephones And Fax,5410,Leased Lines AUG16,18/10/2016,424312,3960.81,NET,Gamma Business Communications,10260A
Gloucester City Council,23UE,Cems/Crems Admin,HC100,Security Services Fees,5351,NOV16 cash handling,18/10/2016,424947,105.42,NET,G4s Cash Solutions (Uk) Ltd,04290V
Gloucester City Council,23UE,Cems/Crems Admin,HC100,Security Services Fees,5351,SEP16 CASH PROCESSING,18/10/2016,425004,21.17,NET,G4s Cash Solutions (Uk) Ltd,04290V
Gloucester City Council,23UE,City Museum And Art Gallery,LM200,Security Services Fees,5351,NOV16 cash handling,18/10/2016,424947,92.47,NET,G4s Cash Solutions (Uk) Ltd,04290V
Gloucester City Council,23UE,Civica Fod Contract,RT260,Contracted Services,6970,FOD OCT-DEC16,18/10/2016,424686,187546.75,NET,Civica Uk Ltd,10841X
Gloucester City Council,23UE,Client Revs & Bens Contract,RT240,Bailiffs Fees,5368,vat only invoice,18/10/2016,424950,0,NET,Bristow & Sutor,05450M
Gloucester City Council,23UE,Contact Centre,RB300,Postages,5400,acct 0252446000 23/9 - 6/10,18/10/2016,425002,1432.33,NET,Royal Mail S.Wales & South West,35830S
Gloucester City Council,23UE,Corporate Reporting /Financing,RC504,Fees For Services Received,5350,childcare vouchers,18/10/2016,424958,45.97,NET,Wider Plan Ltd ( Formerly Kiddivouchers),07893B
Gloucester City Council,23UE,REDACTED,REDACTED,REDACTED,REDACTED,REDACTED,18/10/2016,REDACTED,100,NET,REDACTED,REDACTED
Gloucester City Council,23UE,Council Streetcare Team,HI101,Fees For Services Received,5350,Lyneham Dv fencing,18/10/2016,424800,600,NET,Greenfields Garden Services Ltd,48130G
Gloucester City Council,23UE,Council Streetcare Team,HI101,Maint Of Grounds - General,3030,kissing gate repair,18/10/2016,424799,183.38,NET,Greenfields Garden Services Ltd,48130G
Gloucester City Council,23UE,Council Streetcare Team,HI101,Maint Of Grounds - General,3030,litter bins,18/10/2016,424707,110,NET,Greenfields Garden Services Ltd,48130G
Gloucester City Council,23UE,Council Streetcare Team,HI101,Maint Of Grounds - General,3030,SEEDS,18/10/2016,425068,57.81,NET,Angell Pets Ltd,15773P
Gloucester City Council,23UE,Countryside Unit,LP201,General Repair/Maint Buildings,3000,goods,18/10/2016,424922,3.62,NET,Countrywide Farmers,55687J
Gloucester City Council,23UE,Countryside Unit,LP201,Livestock Foodstuff,5841,goods,18/10/2016,424922,13.99,NET,Countrywide Farmers,55687J
Gloucester City Council,23UE,Countryside Unit,LP201,Maint Of Grounds - General,3030,OCT-DEC16 barn rental,18/10/2016,424963,1500,NET,REDACTED,REDACTED
Gloucester City Council,23UE,Crematorium,HC200,Memorial Plaques,5053,PLAQUES,18/10/2016,425064,156,NET,Arkell & Hurcombe,59812T
Gloucester City Council,23UE,Crematorium,HC200,Memorial Plaques,5053,PLAQUES,18/10/2016,425065,207,NET,Arkell & Hurcombe,59812T
Gloucester City Council,23UE,Crematorium,HC200,Memorial Plaques,5053,PLAQUES,18/10/2016,425066,226,NET,Arkell & Hurcombe,59812T
Gloucester City Council,23UE,Crematorium,HC200,Memorial Plaques,5053,PLAQUES,18/10/2016,425067,310,NET,Arkell & Hurcombe,59812T
Gloucester City Council,23UE,Development Management,PT200,Fees For Services Received,5350,costs re planning appeal ref 3140881,18/10/2016,424962,6275,NET,Sf Planning Limited,17221T
Gloucester City Council,23UE,Docks Complex - Services,RB100,Security Services Fees,5351,NOV16 cash handling,18/10/2016,424947,276.23,NET,G4s Cash Solutions (Uk) Ltd,04290V
Gloucester City Council,23UE,Docks Complex - Services,RB100,Security Services Fees,5351,SEP16 CASH PROCESSING,18/10/2016,425004,3.53,NET,G4s Cash Solutions (Uk) Ltd,04290V
Gloucester City Council,23UE,Economic Development,FP300,Stationery,5302,print jobs,18/10/2016,424948,20,NET,Gloucestershire County Council,18650D
Gloucester City Council,23UE,Folk Museum,LM210,Security Services Fees,5351,NOV16 cash handling,18/10/2016,424947,92.47,NET,G4s Cash Solutions (Uk) Ltd,04290V
Gloucester City Council,23UE,Folk Museum,LM210,Sewerage And Environ Charges,3402,Folk Museum JUL-SEP16,18/10/2016,424266,38.73,NET,Ocs Group Uk Limited T/A Cannon,06506A
Gloucester City Council,23UE,Gloucester Guildhall,LA100,Security Services Fees,5351,NOV16 cash handling,18/10/2016,424947,92.46,NET,G4s Cash Solutions (Uk) Ltd,04290V
Gloucester City Council,23UE,Guildhall Cinema,LA202,Advertising And Publicity,5702,print jobs,18/10/2016,424948,31.03,NET,Gloucestershire County Council,18650D
Gloucester City Council,23UE,REDACTED,REDACTED,REDACTED,REDACTED,REDACTED,18/10/2016,REDACTED,17.19,NET,REDACTED,REDACTED
Gloucester City Council,23UE,Guildhall Events,LA200,Fees For Services Received,5350,lighting engineer,18/10/2016,424967,150,NET,Leap Audio,15059W
Gloucester City Council,23UE,Hackney Carriages,HL100,Fees For Services Received,5350,August 2016,18/10/2016,423403,572,NET,Disclosure And Barring Service,00119W
Gloucester City Council,23UE,Hackney Carriages,HL100,Fees For Services Received,5350,DBS checks SEP16,18/10/2016,424935,308,NET,Disclosure And Barring Service,00119W
Gloucester City Council,23UE,Head Of Regeneration & Eco Dev,GO102,Stationery,5302,print jobs,18/10/2016,424948,20,NET,Gloucestershire County Council,18650D
Gloucester City Council,23UE,Homelessness,CH120,Board And Lodging,5515,B&B PAYMENTS,18/10/2016,425042,6282.74,NET,James Legge Property (Ltd),07844R
Gloucester City Council,23UE,Homelessness,CH120,Board And Lodging,5515,B&B PAYMENTS,18/10/2016,425044,2441.24,NET,Kalmwood Ltd,08568G
Gloucester City Council,23UE,Homelessness,CH120,Board And Lodging,5515,B&B PAYMENTS,18/10/2016,425045,4030.77,NET,Dorchester Guest House,12298D
Gloucester City Council,23UE,Homelessness,CH120,Board And Lodging,5515,B&B PAYMENTS,18/10/2016,425046,5332.09,NET,Carbrey Housing Ltd,11098G
Gloucester City Council,23UE,Homelessness,CH120,Board And Lodging,5515,B&B PAYMENTS,18/10/2016,425047,6944,NET,REDACTED,REDACTED
Gloucester City Council,23UE,REDACTED,REDACTED,REDACTED,REDACTED,REDACTED,18/10/2016,REDACTED,3782.4,NET,REDACTED,REDACTED
Gloucester City Council,23UE,REDACTED,REDACTED,REDACTED,REDACTED,REDACTED,18/10/2016,REDACTED,14118.65,NET,REDACTED,REDACTED
Gloucester City Council,23UE,Human Resources,EH100,Contracted Services,6970,HR Shared Services,18/10/2016,422206,49229,NET,Gloucestershire County Council,18650D
Gloucester City Council,23UE,Human Resources,EH100,Contracted Services,6970,Shared Services HR,18/10/2016,415846,35038,NET,Gloucestershire County Council,18650D
Gloucester City Council,23UE,Human Resources,EH100,Fees For Services Received,5350,Conservation Projects Officer advert,18/10/2016,424955,486.71,NET,Gloucestershire County Council,18650D
Gloucester City Council,23UE,Human Resources,EH100,Fees For Services Received,5350,employee screening,18/10/2016,422238,32.2,NET,Gloucestershire County Council,18650D
Gloucester City Council,23UE,Human Resources,EH100,Fees For Services Received,5350,employee screening,18/10/2016,424402,31,NET,Gloucestershire County Council,18650D
Gloucester City Council,23UE,Human Resources,EH100,Fees For Services Received,5350,employee screening,18/10/2016,422236,32.2,NET,Gloucestershire County Council,18650D
Gloucester City Council,23UE,Human Resources,EH100,Fees For Services Received,5350,Payroll Charges July 2016,18/10/2016,422735,2867.12,NET,Gloucestershire County Council,18650D
Gloucester City Council,23UE,Human Resources,EH100,Fees For Services Received,5350,Payroll Charges July 2016,18/10/2016,423569,2867.12,NET,Gloucestershire County Council,18650D
Gloucester City Council,23UE,Human Resources,EH100,Fees For Services Received,5350,Payroll SEP16,18/10/2016,425005,2899.79,NET,Gloucestershire County Council,18650D
Gloucester City Council,23UE,Human Resources,EH100,Fees For Services Received,5350,Regeneration Oficer advert,18/10/2016,424954,2045.2,NET,Gloucestershire County Council,18650D
Gloucester City Council,23UE,Human Resources,EH100,Fees For Services Received,5350,Senior Planning Officer adverts,18/10/2016,424956,3361.57,NET,Gloucestershire County Council,18650D
Gloucester City Council,23UE,Innsworth Lane Sports Pitches,LY079,Contract Payments,0020,pitch drainage,18/10/2016,424317,2150,CAP,Maxwell Amenity Ltd,00960F
Gloucester City Council,23UE,Investment Property,RB500,Consultants Fees,5349,Management Services,18/10/2016,422585,356.06,NET,Alder King,02367D
Gloucester City Council,23UE,Investment Property,RB500,Consultants Fees,5349,Management Services,18/10/2016,422587,137.5,NET,Alder King,02367D
Gloucester City Council,23UE,Investment Property,RB500,Consultants Fees,5349,Management Services - Apr - Jun 2016,18/10/2016,422586,340.13,NET,Alder King,02367D
Gloucester City Council,23UE,Investment Property,RB500,General Repair/Maint Buildings,3000,Kings Sq bollards,18/10/2016,424688,30,NET,Nsgl Ltd,15246Y
Gloucester City Council,23UE,Investment Property,RB500,General Repair/Maint Buildings,3000,MTC claims SEP16,18/10/2016,424802,18829.79,NET,Rf Gardiner Limited,12299B
Gloucester City Council,23UE,Kings Quarter,RY146,Contract Payments,0020,Grosvenor Hse demolition,18/10/2016,424992,50062.51,CAP,Wye Valley Demolition Ltd,07242C
Gloucester City Council,23UE,Land Searches,RO300,Fees For Services Received,5350,Land charges Q1 2016/17,18/10/2016,424953,1660,NET,Gloucestershire County Council,18650D
Gloucester City Council,23UE,REDACTED,REDACTED,REDACTED,REDACTED,REDACTED,18/10/2016,REDACTED,21,NET,REDACTED,REDACTED
Gloucester City Council,23UE,Nms Contract,HI102,Contracted Services,6970,Pension Recharge September 2016,18/10/2016,425070,9882.34,NET,Enterprise (Aol) Ltd,06695G
Gloucester City Council,23UE,Nms Contract,HI102,Contracted Services,6970,Waste processing plant installation,18/10/2016,425025,546411.38,NET,Enterprise (Aol) Ltd,06695G
Gloucester City Council,23UE,Off Street Car Parks,PP110,Fees For Services Received,5350,services for parking equipment,18/10/2016,424334,668.62,NET,Parkeon Ltd,03238G
Gloucester City Council,23UE,Printing,RP103,Printing,5300,Print Jobs 14/09/2016,18/10/2016,423897,123.09,NET,Gloucestershire County Council,18650D
Gloucester City Council,23UE,Ranger Centre/Netheridge Wks,RY167,Contract Payments,0020,goods,18/10/2016,424922,49.99,CAP,Countrywide Farmers,55687J
Gloucester City Council,23UE,Registration Of Electors,RS400,Fees For Services Received,5350,hire of Parry Hall for elections,18/10/2016,422235,125.94,NET,Gloucestershire County Council,18650D
Gloucester City Council,23UE,Statutory Testing,RS310,Legionella,3018,Domestic Monitoring Contract Sep - Nov16,18/10/2016,423508,3146.25,NET,Kingfisher Environmental Services Ltd,04738V
Gloucester City Council,23UE,Tourism Marketing,LT100,Security Services Fees,5351,NOV16 cash handling,18/10/2016,424947,92.46,NET,G4s Cash Solutions (Uk) Ltd,04290V
Gloucester City Council,23UE,Ugly Structures,GY010,Contract Payments,0020,additional lights for Roman Bastion,18/10/2016,424968,446.03,CAP,Scs Installations Ltd,10383G
Gloucester City Council,23UE,Ugly Structures,GY010,Contract Payments,0020,Kings Walk Bastion works,18/10/2016,424752,16161.88,CAP,Scs Installations Ltd,10383G
Gloucester City Council,23UE,Utilities,PT502,Electricity Supply,3110,ELECTRIC JUN16,18/10/2016,424978,8785.71,NET,West Mercia Energy,11669Z
Gloucester City Council,23UE,Utilities,PT502,Electricity Supply,3110,Services 2 Jun - 01 Sep 2016,18/10/2016,423877,260.48,NET,British Gas,59061X
Gloucester City Council,23UE,Utilities,PT502,Gas Supply,3100,ACCT 601980419 jun-sep16,18/10/2016,424279,94.71,NET,British Gas,59061X
Gloucester City Council,23UE,Vehicles,RS140,Fuel,4012,vehicle fuel,18/10/2016,424974,242.99,NET,Allstar Business Solutions Ltd (Arval),06594A
Gloucester City Council,23UE,Vehicles,RS140,Fuel,4012,vehicle fuel,18/10/2016,425001,317.96,NET,Allstar Business Solutions Ltd (Arval),06594A
Gloucester City Council,23UE,16 Commercial Road,RB539,General Repair/Maint Buildings,3000,Access Scaffolding,19/10/2016,423958,172,NET,King Scaffolding Ltd,16240Y
Gloucester City Council,23UE,Blackfriars,LA609,Security Services Fees,5351,Guildhall security SEP16,19/10/2016,424409,168.75,NET,Nsgl Ltd (Security Acct),12539E
Gloucester City Council,23UE,Business Transformation & Tech,RT700,Computer Software Maintenance,5427,Airwatch renewal,19/10/2016,424348,7550.16,NET,Civica Uk Ltd,10841X
Gloucester City Council,23UE,City Museum Catering,LM202,Catering Provisions -Food,5110,machine rental JUN16,19/10/2016,425164,135,NET,La Spaziale Uk Ltd,11823P
Gloucester City Council,23UE,City Museum Catering,LM202,Catering Provisions -Food,5110,machine rental MAY16,19/10/2016,425163,135,NET,La Spaziale Uk Ltd,11823P
Gloucester City Council,23UE,City Museum Catering,LM202,Catering Provisions -Food,5110,machine rental OCT16,19/10/2016,425162,135,NET,La Spaziale Uk Ltd,11823P
Gloucester City Council,23UE,Civica Contract Revs & Bens,RT250,Contracted Services,6970,Pension excess charges September 16,19/10/2016,425165,10802.81,NET,Civica Uk Ltd,10841X
Gloucester City Council,23UE,Civica It Contract,RT270,Contracted Services,6970,NOV16 ICT managed service,19/10/2016,424261,48061.14,NET,Civica Uk Ltd,10841X
Gloucester City Council,23UE,Civica It Contract,RT270,Contracted Services,6970,Pension excess charges September 16,19/10/2016,425168,875.82,NET,Civica Uk Ltd,10841X
Gloucester City Council,23UE,Client Revs & Bens Contract,RT240,Bailiffs Fees,5368,VAT due on fees,19/10/2016,425059,0,NET,Bristow & Sutor,05450M
Gloucester City Council,23UE,Client Revs & Bens Contract,RT240,Bailiffs Fees,5368,VAT due on fees,19/10/2016,425060,0,NET,Bristow & Sutor,05450M
Gloucester City Council,23UE,Council Streetcare Team,HI101,Fees For Services Received,5350,Diamond Jubillee Close works,19/10/2016,424808,90,NET,Greenfields Garden Services Ltd,48130G
Gloucester City Council,23UE,Council Streetcare Team,HI101,Fees For Services Received,5350,Glevum court inspactions,19/10/2016,424275,90,NET,Greenfields Garden Services Ltd,48130G
Gloucester City Council,23UE,Development Management,PT200,Fees For Services Received,5350,temp staff,19/10/2016,424767,1504.5,NET,The Oyster Partnership Limited,14900T
Gloucester City Council,23UE,Disabled Facilities Grants,CY013,Disabled Facility Grants,0074,Disabled Facilities Grant - MDF5191,19/10/2016,425170,17164.1,CAP,Mears Home Improvement Ltd,00096G
Gloucester City Council,23UE,Flooding And Drainage,HE306,Other Minor Supplies Services,5590,Knotweed Spraying - Horsbere Meadow,19/10/2016,425126,45,NET,Greenfields Garden Services Ltd,48130G
Gloucester City Council,23UE,General Works Fund,RY203,Capital General Repairs & Main,0013,Sand Filter Replacements,19/10/2016,425160,13855,CAP,Total Leisure Engineering Ltd,15320J
Gloucester City Council,23UE,Gloscat S106,LY073,Contract Payments,0020,war memorial bench,19/10/2016,424798,125,CAP,Greenfields Garden Services Ltd,48130G
Gloucester City Council,23UE,Guildhall Bar And Caf�,LA210,Catering Provisions -Food,5110,Food,19/10/2016,425148,208.39,NET,Woodward Foodservice,10714F
Gloucester City Council,23UE,Guildhall Bar And Caf�,LA210,Catering Provisions -Food,5110,Icecream,19/10/2016,425131,72,NET,Winstones Ice Cream Ltd,56347D
Gloucester City Council,23UE,Guildhall Bar And Caf�,LA210,Catering Provisions -Liquor,5111,Gloucester Gold,19/10/2016,425130,115.2,NET,Gloucester Brewery,13373F
Gloucester City Council,23UE,REDACTED,REDACTED,REDACTED,REDACTED,REDACTED,19/10/2016,REDACTED,25,NET,REDACTED,REDACTED
Gloucester City Council,23UE,Guildhall Events,LA200,Advertising And Publicity,5702,august adverts,19/10/2016,424951,180,NET,Local World Ltd,08556P
Gloucester City Council,23UE,REDACTED,REDACTED,REDACTED,REDACTED,REDACTED,19/10/2016,REDACTED,150,NET,REDACTED,REDACTED
Gloucester City Council,23UE,REDACTED,REDACTED,REDACTED,REDACTED,REDACTED,19/10/2016,REDACTED,50,NET,REDACTED,REDACTED
Gloucester City Council,23UE,Guildhall Events,LA200,Security Services Fees,5351,Guildhall security SEP16,19/10/2016,424409,1662,NET,Nsgl Ltd (Security Acct),12539E
Gloucester City Council,23UE,Hillfield Gardens S106,LY112,Contract Payments,0020,Hillfield Gardens boards,19/10/2016,424672,125,CAP,Greenfields Garden Services Ltd,48130G
Gloucester City Council,23UE,REDACTED,REDACTED,REDACTED,REDACTED,REDACTED,19/10/2016,REDACTED,489.44,NET,REDACTED,REDACTED
Gloucester City Council,23UE,REDACTED,REDACTED,REDACTED,REDACTED,REDACTED,19/10/2016,REDACTED,530,NET,REDACTED,REDACTED
Gloucester City Council,23UE,Human Resources,EH100,Fees For Services Received,5350,employee screening,19/10/2016,422237,32.2,NET,Gloucestershire County Council,18650D
Gloucester City Council,23UE,Nms Contract,HI102,Contracted Services,6970,comoddity top up September 2016,19/10/2016,424984,25856,NET,Enterprise (Aol) Ltd,06695G
Gloucester City Council,23UE,Nms Contract,HI102,Contracted Services,6970,OCT16 service fee,19/10/2016,424985,478446.3,NET,Enterprise (Aol) Ltd,06695G
Gloucester City Council,23UE,Registration Of Electors,RS400,Printing,5300,first reminder HEF form mailing,19/10/2016,424939,3103.68,NET,Alpha Response Print & Mail Ltd,03029U
Gloucester City Council,23UE,Registration Of Electors,RS400,Printing,5300,september ier mailings,19/10/2016,424940,776.95,NET,Alpha Response Print & Mail Ltd,03029U
Gloucester City Council,23UE,Tic Trading,LT110,Materials For Sale,5080,goods for resale,19/10/2016,424666,50,NET,Inish Publications,10233D
Gloucester City Council,23UE,Tourism Marketing,LT100,Other Minor Supplies Services,5590,call out 18/9/16,19/10/2016,424652,31,NET,Glevum Security Ltd,03249B
Gloucester City Council,23UE,Vehicles,RS140,Routine R And M - Vehicles,4011,MIRRORGLASS REPLACEMENT,19/10/2016,425169,23.99,NET,123 Car & Commercial,07651E
Gloucester City Council,23UE,Vehicles,RS140,Routine R And M - Vehicles,4011,MOT,19/10/2016,425144,40,NET,123 Car & Commercial,07651E
Gloucester City Council,23UE,Business Transformation & Tech,RT700,Computer Software <5000,5425,contract renewal 16-17,20/10/2016,422087,375,NET,System Force I.T.,08693C
Gloucester City Council,23UE,Cemeteries,HC300,Clothing,5200,workwear - fleece jacket,20/10/2016,424813,52.07,NET,Safpro Industrial Supply Co,39190W
Gloucester City Council,23UE,Cemeteries,HC300,Printing,5300,plaque adoption register,20/10/2016,424995,545,NET,Shaw & Sons Ltd,40310F
Gloucester City Council,23UE,Cemeteries,HC300,Routine R And M - Vehicles,4011,3m ladder,20/10/2016,424604,100,NET,Teleshore (Uk) Ltd,56819G
Gloucester City Council,23UE,Cemeteries,HC300,Trade Refuse Tipping Fees,6297,skip exchange SEP16,20/10/2016,424401,320,NET,Allstone Sand & Gravel Aggregates Ltd,00940M
Gloucester City Council,23UE,City Museum And Art Gallery,LM200,Sewerage And Environ Charges,3402,City Museum JUL-SEP16,20/10/2016,424267,46.8,NET,Ocs Group Uk Limited T/A Cannon,06506A
Gloucester City Council,23UE,City Museum Catering,LM202,Catering Provisions -Food,5110,milk,20/10/2016,424393,4.76,NET,Total Produce Gloucester,12645E
Gloucester City Council,23UE,Community Strat & Engagement,FP100,Fees For Services Received,5350,MAIDEN PARTNERSHIP,20/10/2016,424821,10000,NET,Gloucestershire County Council,18650D
Gloucester City Council,23UE,Council Streetcare Team,HI101,Window Cleaning,3610,September 16 Window Cleaning,20/10/2016,425124,130,NET,Poles Apart Window Cleaning,11636R
Gloucester City Council,23UE,Crematorium,HC200,Book Of Memory,5055,memorial engraving,20/10/2016,424814,108.74,NET,Hilton Cabinet Co Ltd,21910A
Gloucester City Council,23UE,Crematorium,HC200,Memorial Plaques,5053,plaque,20/10/2016,424344,54.75,NET,Treasured Memories Limited,11058H
Gloucester City Council,23UE,Docks Complex - Services,RB100,Uniforms,5201,safety boot,20/10/2016,424318,41.58,NET,Safpro Industrial Supply Co,39190W
Gloucester City Council,23UE,Economic Development,FP300,Business Grant,7116,Grant Payment,20/10/2016,425204,500,NET,Fad And Fated Ltd,17244E
Gloucester City Council,23UE,REDACTED,REDACTED,REDACTED,REDACTED,REDACTED,20/10/2016,REDACTED,0,NET,REDACTED,REDACTED
Gloucester City Council,23UE,Hackney Carriages,HL100,Fees For Services Received,5350,dbs checks JUL16,20/10/2016,425171,396,NET,Disclosure And Barring Service,00119W
Gloucester City Council,23UE,REDACTED,REDACTED,REDACTED,REDACTED,REDACTED,20/10/2016,REDACTED,272.72,NET,REDACTED,REDACTED
Gloucester City Council,23UE,REDACTED,REDACTED,REDACTED,REDACTED,REDACTED,20/10/2016,REDACTED,295,NET,REDACTED,REDACTED
Gloucester City Council,23UE,Land Searches,RO300,Fees For Services Received,5350,Land charges  Q2 16/17,20/10/2016,425154,1600,NET,Gloucestershire County Council,18650D
Gloucester City Council,23UE,Nms Contract,HI102,Fees For Services Received,5350,wood recycling,20/10/2016,424981,335.5,NET,Enterprise (Aol) Ltd,06695G
Gloucester City Council,23UE,Off Street Car Parks,PP110,General Repair/Maint Buildings,3000,Longsmith St signage,20/10/2016,424596,1606.36,NET,Hanman Split Ltd,56889J
Gloucester City Council,23UE,The Arbor,HC501,Catering Provisions -Food,5110,Coffee Beans & Syrups,20/10/2016,423033,337.31,NET,Caffeica Ltd,11923J
Gloucester City Council,23UE,The Arbor,HC501,Catering Provisions -Food,5110,food,20/10/2016,424942,160.28,NET,Janes Pantry,24500W
Gloucester City Council,23UE,The Arbor,HC501,Catering Provisions -Food,5110,food,20/10/2016,424961,83.15,NET,Janes Pantry,24500W
Gloucester City Council,23UE,Allotments,HI104,Water Supply,3400,Aquafund agreement charges,21/10/2016,424959,138.95,NET,Advanced Demand Side Management Ltd,16229K
Gloucester City Council,23UE,Allotments,HI104,Water Supply,3400,Consumption Savings,21/10/2016,423428,-163.91,NET,Advanced Demand Side Management Ltd,16229K
Gloucester City Council,23UE,Blackfriars,LA609,Hire Of Equipment,5020,Audio Equipment,21/10/2016,425129,648.5,NET,Uss Unique Sound Systems Ltd,59571S
Gloucester City Council,23UE,Blackfriars,LA609,Hire Of Equipment,5020,Projection Screen,21/10/2016,425128,28,NET,Uss Unique Sound Systems Ltd,59571S
Gloucester City Council,23UE,Bus Station,RB400,Water Supply,3400,Aquafund agreement charges,21/10/2016,424959,57.5,NET,Advanced Demand Side Management Ltd,16229K
Gloucester City Council,23UE,Bus Station,RB400,Water Supply,3400,Consumption Savings,21/10/2016,423428,77.97,NET,Advanced Demand Side Management Ltd,16229K
Gloucester City Council,23UE,City Museum And Art Gallery,LM200,Water Supply,3400,Aquafund agreement charges,21/10/2016,424959,-54.05,NET,Advanced Demand Side Management Ltd,16229K
Gloucester City Council,23UE,City Museum And Art Gallery,LM200,Water Supply,3400,Consumption Savings,21/10/2016,423428,10.04,NET,Advanced Demand Side Management Ltd,16229K
Gloucester City Council,23UE,Council Streetcare Team,HI101,Water Supply,3400,Aquafund agreement charges,21/10/2016,424959,34.85,NET,Advanced Demand Side Management Ltd,16229K
Gloucester City Council,23UE,Council Streetcare Team,HI101,Water Supply,3400,Consumption Savings,21/10/2016,423428,21.73,NET,Advanced Demand Side Management Ltd,16229K
Gloucester City Council,23UE,Countryside Unit,LP201,Water Supply,3400,Aquafund agreement charges,21/10/2016,424959,-59.08,NET,Advanced Demand Side Management Ltd,16229K
Gloucester City Council,23UE,Countryside Unit,LP201,Water Supply,3400,Consumption Savings,21/10/2016,423428,76.05,NET,Advanced Demand Side Management Ltd,16229K
Gloucester City Council,23UE,Development Management,PT200,Fees For Services Received,5350,Peel Centre appraisal,21/10/2016,425198,1947.56,NET,Carter Jonas Llp,16157K
Gloucester City Council,23UE,Development Management,PT200,Fees For Services Received,5350,Peel Centre appraisal,21/10/2016,425199,6600,NET,Carter Jonas Llp,16157K
Gloucester City Council,23UE,Disabled Facilities Grants,CY013,Disabled Facility Grants,0074,Disabled Facilities Grant - MDF5203,21/10/2016,425229,5958.49,CAP,Mears Home Improvement Ltd,00096G
Gloucester City Council,23UE,Docks Complex - Services,RB100,Hire Of Equipment,5020,lease rental melodia Classi,21/10/2016,425006,162.57,NET,Siemens Financial Services Ltd,08349H
Gloucester City Council,23UE,Docks Complex - Services,RB100,Internal Decs - Communal Areas,3050,Engineer 03/06/2016,21/10/2016,420820,131.26,NET,Pickerings Europe Ltd,58816U
Gloucester City Council,23UE,Docks Complex - Services,RB100,Lift Maintenance,3051,Engineer 09/09/2016 HKP,21/10/2016,425150,56.25,NET,Pickerings Europe Ltd,58816U
Gloucester City Council,23UE,Docks Complex - Services,RB100,Lift Maintenance,3051,Engineer 22/06/2016,21/10/2016,420821,56.25,NET,Pickerings Europe Ltd,58816U
Gloucester City Council,23UE,Docks Complex - Services,RB100,Lift Maintenance,3051,Engineer 23/06/16 HKP,21/10/2016,425152,65.62,NET,Pickerings Europe Ltd,58816U
Gloucester City Council,23UE,Docks Complex - Services,RB100,Lift Maintenance,3051,Engineer 30/08/2016,21/10/2016,425151,37.5,NET,Pickerings Europe Ltd,58816U
Gloucester City Council,23UE,Docks Complex - Services,RB100,Water Supply,3400,Aquafund agreement charges,21/10/2016,424959,2.77,NET,Advanced Demand Side Management Ltd,16229K
Gloucester City Council,23UE,Docks Complex - Services,RB100,Water Supply,3400,Consumption Savings,21/10/2016,423428,195.96,NET,Advanced Demand Side Management Ltd,16229K
Gloucester City Council,23UE,Folk Museum,LM210,Water Supply,3400,Consumption Savings,21/10/2016,423428,-33.15,NET,Advanced Demand Side Management Ltd,16229K
Gloucester City Council,23UE,General Drainage Works,PY241,Contract Payments,0020,Cornfield Mixture,21/10/2016,425134,24,CAP,Emorsgate Seeds,51628R
Gloucester City Council,23UE,Gloucester Guildhall,LA100,Water Supply,3400,Aquafund agreement charges,21/10/2016,424959,-1.72,NET,Advanced Demand Side Management Ltd,16229K
Gloucester City Council,23UE,Gloucester Guildhall,LA100,Water Supply,3400,Consumption Savings,21/10/2016,423428,-17.48,NET,Advanced Demand Side Management Ltd,16229K
Gloucester City Council,23UE,REDACTED,REDACTED,REDACTED,REDACTED,REDACTED,21/10/2016,REDACTED,383.07,NET,REDACTED,REDACTED
Gloucester City Council,23UE,Housing Works In Default,HD500,Clearance And Cleansing Fees,5384,Trier Way works,21/10/2016,424676,93.65,NET,Snape Construction Ltd,40958T
Gloucester City Council,23UE,Investment Property,RB500,Fire Smoke Detection System,3059,Eastgate Market PPM survey,21/10/2016,424801,697,NET,Brakel Airvent Ltd,51073T
Gloucester City Council,23UE,Investment Property,RB500,Water Supply,3400,Aquafund agreement charges,21/10/2016,424959,37.38,NET,Advanced Demand Side Management Ltd,16229K
Gloucester City Council,23UE,Investment Property,RB500,Water Supply,3400,Consumption Savings,21/10/2016,423428,105.74,NET,Advanced Demand Side Management Ltd,16229K
Gloucester City Council,23UE,Investment Property,RB500,Water Supply,3400,Tariff Savings Aug 16,21/10/2016,423429,61.68,NET,Advanced Demand Side Management Ltd,16229K
Gloucester City Council,23UE,Investment Property,RB500,Water Supply,3400,Tariff Savings July 16,21/10/2016,422535,61.68,NET,Advanced Demand Side Management Ltd,16229K
Gloucester City Council,23UE,Kings Walk Bastion,GY023,Contract Payments,0020,Kings Walk Bastion additional works,21/10/2016,423572,415,CAP,J M Grail (General Engineering) Ltd,03204A
Gloucester City Council,23UE,Off Street Car Parks,PP110,Water Supply,3400,Tariff Savings Aug 16,21/10/2016,423429,13.57,NET,Advanced Demand Side Management Ltd,16229K
Gloucester City Council,23UE,Off Street Car Parks,PP110,Water Supply,3400,Tariff Savings July 16,21/10/2016,422535,13.57,NET,Advanced Demand Side Management Ltd,16229K
Gloucester City Council,23UE,Public Conveniences (Client),HI400,Water Supply,3400,Aquafund agreement charges,21/10/2016,424959,1.03,NET,Advanced Demand Side Management Ltd,16229K
Gloucester City Council,23UE,Public Conveniences (Client),HI400,Water Supply,3400,Consumption Savings,21/10/2016,423428,-84.3,NET,Advanced Demand Side Management Ltd,16229K
Gloucester City Council,23UE,Public Conveniences (Client),HI400,Water Supply,3400,Tariff Savings Aug 16,21/10/2016,423429,81.91,NET,Advanced Demand Side Management Ltd,16229K
Gloucester City Council,23UE,Public Conveniences (Client),HI400,Water Supply,3400,Tariff Savings July 16,21/10/2016,422535,81.91,NET,Advanced Demand Side Management Ltd,16229K
Gloucester City Council,23UE,The Fleece,RB530,General Repair/Maint Buildings,3000,Fleece hotel hire,21/10/2016,424780,176,NET,Abbey Loos Limited,10787B
Gloucester City Council,23UE,Tic Trading,LT110,Materials For Sale,5080,goods for resale,21/10/2016,425202,95.9,NET,1st Take Ltd,05598B
Gloucester City Council,23UE,Ugly Structures,GY010,Contract Payments,0020,Kings Walk Bastion additional works,21/10/2016,423572,0,CAP,J M Grail (General Engineering) Ltd,03204A
Gloucester City Council,23UE,Utilities,PT502,Electricity Supply,3110,ELECTRIC AUG16,21/10/2016,424979,7298.3,NET,West Mercia Energy,11669Z
Gloucester City Council,23UE,Utilities,PT502,Electricity Supply,3110,ELECTRIC FEB-MAY16,21/10/2016,424982,2950.42,NET,West Mercia Energy,11669Z
Gloucester City Council,23UE,Utilities,PT502,Electricity Supply,3110,Electric SEP16,21/10/2016,425000,23599.96,NET,West Mercia Energy,11669Z
Gloucester City Council,23UE,Utilities,PT502,Electricity Supply,3110,GAS & ELECTRIC APR-AUG16,21/10/2016,424980,21708.49,NET,West Mercia Energy,11669Z
Gloucester City Council,23UE,Utilities,PT502,Gas Supply,3100,ELECTRIC FEB-MAY16,21/10/2016,424982,2334.57,NET,West Mercia Energy,11669Z
Gloucester City Council,23UE,Utilities,PT502,Gas Supply,3100,GAS & ELECTRIC APR-AUG16,21/10/2016,424980,16104.7,NET,West Mercia Energy,11669Z
Gloucester City Council,23UE,Business Transformation & Tech,RT700,Mobile Phones,5409,Charges April 2016,24/10/2016,417338,8.38,NET,Everything Everywhere Ltd (T-Mobile),57543S
Gloucester City Council,23UE,Financial Services,RT200,Consultants Fees,5349,EXPENSES SEP16,24/10/2016,424718,231.95,NET,Civica Uk Ltd,10841X
Gloucester City Council,23UE,Food Safety,HE100,Hospitality,5122,room hire 27/9/16,24/10/2016,424247,67.4,NET,Aspire Sports & Cultural Trust,08135V
Gloucester City Council,23UE,REDACTED,REDACTED,REDACTED,REDACTED,REDACTED,24/10/2016,REDACTED,508.75,NET,REDACTED,REDACTED
Gloucester City Council,23UE,REDACTED,REDACTED,REDACTED,REDACTED,REDACTED,24/10/2016,REDACTED,235.42,NET,REDACTED,REDACTED
Gloucester City Council,23UE,REDACTED,REDACTED,REDACTED,REDACTED,REDACTED,24/10/2016,REDACTED,10.94,NET,REDACTED,REDACTED
Gloucester City Council,23UE,REDACTED,REDACTED,REDACTED,REDACTED,REDACTED,24/10/2016,REDACTED,300,NET,REDACTED,REDACTED
Gloucester City Council,23UE,National Express,LT105,Materials For Sale,5080,tickets sold on commission,24/10/2016,424946,10655,NET,National Express Ltd,31455K
Gloucester City Council,23UE,National Express,LT105,Sale Of Goods And Services,9230,tickets sold on commission,24/10/2016,424946,-600.99,NET,National Express Ltd,31455K
Gloucester City Council,23UE,Off Street Car Parks,PP110,General Repair/Maint Buildings,3000,Aco Channels,24/10/2016,420730,255,NET,Three Counties Drain Service,44033V
Gloucester City Council,23UE,Superbreak,LT104,Materials For Sale,5080,tickets sold on commission,24/10/2016,424936,164,NET,Superbreak Mini Holidays,00712D
Gloucester City Council,23UE,Superbreak,LT104,Materials For Sale,5080,tickets sold on commission,24/10/2016,424937,110,NET,Superbreak Mini Holidays,00712D
Gloucester City Council,23UE,Superbreak,LT104,Materials For Sale,5080,tickets sold on commission,24/10/2016,425226,150,NET,Superbreak Mini Holidays,00712D
Gloucester City Council,23UE,Superbreak,LT104,Sale Of Goods And Services,9230,tickets sold on commission,24/10/2016,424936,-13.66,NET,Superbreak Mini Holidays,00712D
Gloucester City Council,23UE,Superbreak,LT104,Sale Of Goods And Services,9230,tickets sold on commission,24/10/2016,424937,-9.16,NET,Superbreak Mini Holidays,00712D
Gloucester City Council,23UE,Superbreak,LT104,Sale Of Goods And Services,9230,tickets sold on commission,24/10/2016,425226,-12.5,NET,Superbreak Mini Holidays,00712D
Gloucester City Council,23UE,The Arbor,HC501,Catering Provisions -Food,5110,food,24/10/2016,425019,78.37,NET,Total Produce Gloucester,12645E
Gloucester City Council,23UE,Theatre Tokens,LT106,Materials For Sale,5080,tickets sold on commission,24/10/2016,424975,100,NET,Society Of London Theatre,05656Z
Gloucester City Council,23UE,Theatre Tokens,LT106,Sale Of Goods And Services,9230,tickets sold on commission,24/10/2016,424975,-5,NET,Society Of London Theatre,05656Z
Gloucester City Council,23UE,Tic Rovercard Sales,LT101,Materials For Sale,5080,tickets sold on commission,24/10/2016,424938,1886,NET,Stagecoach Services Ltd,56554W
Gloucester City Council,23UE,Tic Rovercard Sales,LT101,Sale Of Goods And Services,9230,tickets sold on commission,24/10/2016,424938,-157.16,NET,Stagecoach Services Ltd,56554W
Gloucester City Council,23UE,Tic Trading,LT110,Materials For Sale,5080,CLANNA CARDS,24/10/2016,425063,13,NET,Clanna Cards,13960H
Gloucester City Council,23UE,Tourism Marketing,LT100,Other Minor Supplies Services,5590,TIC JUL-SEP16,24/10/2016,424269,38.76,NET,Ocs Group Uk Limited T/A Cannon,06506A
Gloucester City Council,23UE,Business Transformation & Tech,RT700,Computer Software <5000,5425,Recurring Payments,25/10/2016,425297,21441,NET,Capita Business Services Limited,54095C
Gloucester City Council,23UE,Business Transformation & Tech,RT700,Computer Software Maintenance,5427,Focus CRM maintenance 2016/17,25/10/2016,425200,2464,NET,Ash Information Systems Ltd,54890V
Gloucester City Council,23UE,Car Parks,GY002,Contract Payments,0020,Paper Labels,25/10/2016,425276,256,CAP,Jm Prime Technologies Limited,17249U
Gloucester City Council,23UE,Cemeteries,HC300,Fuel,4012,CPL Petroleum Gasoil,25/10/2016,425061,435.44,NET,Cpl Petroleum,55192U
Gloucester City Council,23UE,Cemeteries,HC300,Routine R And M - Vehicles,4011,Various Items,25/10/2016,425268,39.04,NET,Garden Machinery Gloucester,55641K
Gloucester City Council,23UE,Cemeteries,HC300,Tyres,4014,mower tyre repairs,25/10/2016,425327,62,NET,Ats Euromaster Ltd,06005E
Gloucester City Council,23UE,City Museum Catering,LM202,Catering Provisions -Food,5110,Milk,25/10/2016,425263,4.76,NET,Total Produce Gloucester,12645E
Gloucester City Council,23UE,City Museum Catering,LM202,Catering Provisions -Food,5110,Milk,25/10/2016,425264,4.76,NET,Total Produce Gloucester,12645E
Gloucester City Council,23UE,Contact Centre,RB300,Other Minor Supplies Services,5590,Out of Hours Service,25/10/2016,425269,291.9,NET,Worcestershire Telecare,16419C
Gloucester City Council,23UE,Contact Centre,RB300,Stationery,5302,Paper,25/10/2016,425266,469,NET,Premier Paper Group Ltd,09166Y
Gloucester City Council,23UE,Contact Centre,RB300,Stationery,5302,Paper,25/10/2016,425267,76.5,NET,Premier Paper Group Ltd,09166Y
Gloucester City Council,23UE,Council Streetcare Team,HI101,Maint Of Grounds - General,3030,various works,25/10/2016,424983,317.65,NET,Enterprise (Aol) Ltd,06695G
Gloucester City Council,23UE,Council Streetcare Team,HI101,Signs / Nameplates,3039,various works,25/10/2016,424983,128.52,NET,Enterprise (Aol) Ltd,06695G
Gloucester City Council,23UE,REDACTED,REDACTED,REDACTED,REDACTED,REDACTED,25/10/2016,REDACTED,50,NET,REDACTED,REDACTED
Gloucester City Council,23UE,REDACTED,REDACTED,REDACTED,REDACTED,REDACTED,25/10/2016,REDACTED,200,NET,REDACTED,REDACTED
Gloucester City Council,23UE,Docks Complex - Castlemeads Cp,RB210,Contracted Services,6970,GC fixed overheads,25/10/2016,424931,773.48,NET,Apcoa Parking (Uk) Ltd,09954M
Gloucester City Council,23UE,Docks Complex - Castlemeads Cp,RB210,Contracted Services,6970,GC P&D head cams,25/10/2016,424928,2121.34,NET,Apcoa Parking (Uk) Ltd,09954M
Gloucester City Council,23UE,Docks Complex - Castlemeads Cp,RB210,Contracted Services,6970,GC Variable enfoercement,25/10/2016,424930,143.55,NET,Apcoa Parking (Uk) Ltd,09954M
Gloucester City Council,23UE,Docks Complex - Castlemeads Cp,RB210,Contracted Services,6970,GC vehicles,25/10/2016,424929,460.16,NET,Apcoa Parking (Uk) Ltd,09954M
Gloucester City Council,23UE,Docks Complex - Services,RB100,Cleaning Materials,3600,cleaning materials,25/10/2016,424960,328.46,NET,Acs Business Supplies Ltd,15791M
Gloucester City Council,23UE,Docks Complex - Services,RB100,Lift Maintenance,3051,Lift Inspections - The Docks,25/10/2016,422797,373.75,NET,Pickerings Europe Ltd,58816U
Gloucester City Council,23UE,Docks Complex - Services,RB100,Trade Refuse Collection,3630,Trade Waste charges Oct-Dec 2016,25/10/2016,425072,13747.5,NET,Enterprise (Aol) Ltd,06695G
Gloucester City Council,23UE,Docks Complex - Services,RB100,Trade Refuse Collection,3630,Trade Waste Oct-Dec 16,25/10/2016,425071,446.55,NET,Enterprise (Aol) Ltd,06695G
Gloucester City Council,23UE,Economic Development,FP300,Conference/Meeting Expenses,5510,12/10/16 COurse,25/10/2016,423734,385,NET,Partnership Media Group Ltd T/A Govnet Comm,57218G
Gloucester City Council,23UE,Economic Development,FP300,Stationery,5302,cleaning materials,25/10/2016,424960,26.26,NET,Acs Business Supplies Ltd,15791M
Gloucester City Council,23UE,Gloucester Guildhall,LA100,Cleaning Materials,3600,cleaning materials,25/10/2016,424960,293.73,NET,Acs Business Supplies Ltd,15791M
Gloucester City Council,23UE,Grants To Voluntary Sector,FG100,Grants,7100C,Materials - Green Peace Garden,25/10/2016,425244,250,NET,Increase The Peace Project,08667D
Gloucester City Council,23UE,Guildhall Bar And Caf�,LA210,Fees For Services Received,5350,temporary staff w/e 16/10/2016,25/10/2016,425288,67.38,NET,Re People,17253D
Gloucester City Council,23UE,REDACTED,REDACTED,REDACTED,REDACTED,REDACTED,25/10/2016,REDACTED,21.88,NET,REDACTED,REDACTED
Gloucester City Council,23UE,REDACTED,REDACTED,REDACTED,REDACTED,REDACTED,25/10/2016,REDACTED,63.54,NET,REDACTED,REDACTED
Gloucester City Council,23UE,REDACTED,REDACTED,REDACTED,REDACTED,REDACTED,25/10/2016,REDACTED,84.37,NET,REDACTED,REDACTED
Gloucester City Council,23UE,REDACTED,REDACTED,REDACTED,REDACTED,REDACTED,25/10/2016,REDACTED,100,NET,REDACTED,REDACTED
Gloucester City Council,23UE,REDACTED,REDACTED,REDACTED,REDACTED,REDACTED,25/10/2016,REDACTED,18,NET,REDACTED,REDACTED
Gloucester City Council,23UE,Guildhall Events,LA200,Advertising And Publicity,5702,Display Ad 12/10/2016,25/10/2016,425250,70,NET,Forest Of Dean & Wye Valley Review,03989A
Gloucester City Council,23UE,REDACTED,REDACTED,REDACTED,REDACTED,REDACTED,25/10/2016,REDACTED,1500,NET,REDACTED,REDACTED
Gloucester City Council,23UE,REDACTED,REDACTED,REDACTED,REDACTED,REDACTED,25/10/2016,REDACTED,200,NET,REDACTED,REDACTED
Gloucester City Council,23UE,REDACTED,REDACTED,REDACTED,REDACTED,REDACTED,25/10/2016,REDACTED,125,NET,REDACTED,REDACTED
Gloucester City Council,23UE,Guildhall Events,LA200,Fees For Services Received,5350,National Ads 29/11/2016,25/10/2016,425249,250,NET,Dhp Group,10813C
Gloucester City Council,23UE,REDACTED,REDACTED,REDACTED,REDACTED,REDACTED,25/10/2016,REDACTED,125,NET,REDACTED,REDACTED
Gloucester City Council,23UE,REDACTED,REDACTED,REDACTED,REDACTED,REDACTED,25/10/2016,REDACTED,300,NET,REDACTED,REDACTED
Gloucester City Council,23UE,REDACTED,REDACTED,REDACTED,REDACTED,REDACTED,25/10/2016,REDACTED,350,NET,REDACTED,REDACTED
Gloucester City Council,23UE,Head Of Regeneration & Eco Dev,GO102,Advertising And Publicity,5702,Campaign Licence,25/10/2016,425272,2000,NET,Gfirst Lep Cic,17186T
Gloucester City Council,23UE,Head Of Regeneration & Eco Dev,GO102,Advertising And Publicity,5702,High Street Campaign Licence,25/10/2016,425273,2000,NET,Gfirst Lep Cic,17186T
Gloucester City Council,23UE,Head Of Regeneration & Eco Dev,GO102,Subscriptions,5600,planning magazine,25/10/2016,424949,268,NET,Haymarket Media Group Ltd,17229A
Gloucester City Council,23UE,Homelessness,CH120,Fees For Services Received,5350,out of hours,25/10/2016,424734,64.28,NET,Orbis Protect Limited*,56370J
Gloucester City Council,23UE,Homelessness,CH120,Fees For Services Received,5350,out of hours,25/10/2016,424745,64.28,NET,Orbis Protect Limited*,56370J
Gloucester City Council,23UE,Homelessness,CH120,Fees For Services Received,5350,out of hours,25/10/2016,424746,50,NET,Orbis Protect Limited*,56370J
Gloucester City Council,23UE,Homelessness Prevention,CH122,Fees For Services Received,5350,medical report,25/10/2016,424224,20.5,NET,Gloucester Health Access Centre,11611H
Gloucester City Council,23UE,Investment Property,RB500,Fire Fighting Equipment,3008,New Fire Extinguishers,25/10/2016,423931,165,NET,Allcoopers Ltd,52921E
Gloucester City Council,23UE,Investment Property,RB500,Lift Maintenance,3051,GL1 Lift Inspections,25/10/2016,419168,242.5,NET,Pickerings Europe Ltd,58816U
Gloucester City Council,23UE,Land Searches,RO300,Fees For Services Received,5350,Land Charges July- Sep 16,25/10/2016,425293,7155.31,NET,Gloucestershire County Council,18650D
Gloucester City Council,23UE,Off Street Car Parks,PP110,Computer Software Maintenance,5427,cost of Chipside system,25/10/2016,423118,1417.5,NET,Gloucestershire County Council,18650D
Gloucester City Council,23UE,Off Street Car Parks,PP110,Contracted Services,6970,GC other items,25/10/2016,424927,11588.92,NET,Apcoa Parking (Uk) Ltd,09954M
Gloucester City Council,23UE,Off Street Car Parks,PP110,Contracted Services,6970,GC Variable enfoercement,25/10/2016,424930,4195.37,NET,Apcoa Parking (Uk) Ltd,09954M
Gloucester City Council,23UE,Off Street Car Parks,PP110,Rents,3200,Gt Western Rd car park rent SEP-DEC16,25/10/2016,423944,118.75,NET,Telereal Services Ltd,15121I
Gloucester City Council,23UE,Parks Contract Management,LP100,Maint Of Grounds - General,3030,King George - New Spring,25/10/2016,423575,155.52,NET,Enterprise (Aol) Ltd,06695G
Gloucester City Council,23UE,Parks Contract Management,LP100,Maint Of Grounds - General,3030,various works,25/10/2016,424983,544.32,NET,Enterprise (Aol) Ltd,06695G
Gloucester City Council,23UE,Pollution Control,HE300,Fees For Services Received,5350,Various Items,25/10/2016,423414,272.29,NET,Safpro Industrial Supply Co,39190W
Gloucester City Council,23UE,Pollution Control,HE300,Fees For Services Received,5350,Various Items,25/10/2016,425256,104.25,NET,Gradko International Ltd,11063B
Gloucester City Council,23UE,Pollution Control,HE300,Fees For Services Received,5350,Washer for circular clip,25/10/2016,425255,4.2,NET,Gradko International Ltd,11063B
Gloucester City Council,23UE,Rehousing,CH111,Fees For Services Received,5350,medical report,25/10/2016,421048,17.08,NET,Gloucester Health Access Centre,11611H
Gloucester City Council,23UE,Rehousing,CH111,Fees For Services Received,5350,Medical Reports,25/10/2016,423477,20.5,NET,Gloucester Health Access Centre,11611H
Gloucester City Council,23UE,Rehousing,CH111,Fees For Services Received,5350,medical report,25/10/2016,423558,20.5,NET,Rosebank Health,03041E
Gloucester City Council,23UE,Retail Market - Landlord,HM300,Cleaning / Domestic Equipment,5011,cleaning materials,25/10/2016,424960,310.94,NET,Acs Business Supplies Ltd,15791M
Gloucester City Council,23UE,Statutory Testing,RS310,Fees For Services Received,5350,City Museum - Clear Faults,25/10/2016,423058,17,NET,Allcoopers Ltd,52921E
Gloucester City Council,23UE,Statutory Testing,RS310,Fire Alarm Maintenance,3053,Monthly Call outs,25/10/2016,422639,51,NET,Allcoopers Ltd,52921E
Gloucester City Council,23UE,The Fleece,RB530,General Repair/Maint Buildings,3000,Option Appraisal Fleece Hotel,25/10/2016,425329,44505,NET,Butler Hegarty Architects Ltd,17254B
Gloucester City Council,23UE,Tourism Marketing,LT100,Operational Equipment <5000,5012,Pavement Sign,25/10/2016,425262,180.99,NET,Robert Hall Business Equipment Ltd,19925B
Gloucester City Council,23UE,Townscape Heritage Initiative,LY145,Contract Payments,0020,THI Grant Payment,25/10/2016,425075,17518.49,CAP,Cape Homes Limited,17240N
Gloucester City Council,23UE,REDACTED,REDACTED,REDACTED,REDACTED,REDACTED,25/10/2016,REDACTED,12000,CAP,REDACTED,REDACTED
Gloucester City Council,23UE,Business Transformation & Tech,RT700,Computer Software <5000,5425,Renewal Fee,26/10/2016,422539,630,NET,Ncc Services Ltd,03054V
Gloucester City Council,23UE,Cemeteries,HC300,Maint Of Grounds - General,3030,Various Items,26/10/2016,425245,650.95,NET,Teleshore (Uk) Ltd,56819G
Gloucester City Council,23UE,Crematorium,HC200,Operational Equipment <5000,5012,cremations register,26/10/2016,424994,545,NET,Shaw & Sons Ltd,40310F
Gloucester City Council,23UE,Crematorium,HC200,Repair/Maint Of Fixed Plant,3006,Leads and Plugs,26/10/2016,425295,608.7,NET,Facultatieve Technologies Ltd,51210H
Gloucester City Council,23UE,Development Management,PT200,Basic Pay - Temporary Staff,2751,temporary staff,26/10/2016,425140,1473.34,NET,The Oyster Partnership Limited,14900T
Gloucester City Council,23UE,Development Management,PT200,Basic Pay - Temporary Staff,2751,temporary staff  w/e 03/10/16,26/10/2016,425139,1452.62,NET,The Oyster Partnership Limited,14900T
Gloucester City Council,23UE,Development Management,PT200,Basic Pay - Temporary Staff,2751,temporary staff  w/e 10/10/16,26/10/2016,425274,1488.63,NET,The Oyster Partnership Limited,14900T
Gloucester City Council,23UE,Docks Complex - Catering Servs,RB110,Sale Of Council Products,9220,Food,26/10/2016,425277,25.63,NET,Janes Pantry,24500W
Gloucester City Council,23UE,Docks Complex - Services,RB100,Hire Of Equipment,5020,Rental Nov 16 - Feb 17,26/10/2016,425133,422.24,NET,Wessex Products (Leasing) Ltd,03684C
Gloucester City Council,23UE,Docks Complex - Services,RB100,Hire Of Equipment,5020,Rental Oct 16 - Jan 17,26/10/2016,423746,48.75,NET,Wessex Products (Leasing) Ltd,03684C
Gloucester City Council,23UE,REDACTED,REDACTED,REDACTED,REDACTED,REDACTED,26/10/2016,REDACTED,0,NET,REDACTED,REDACTED
Gloucester City Council,23UE,Pest Control,HD400,Fees For Services Received,5350,Gull Control Treatment,26/10/2016,425281,6669,NET,Mitie Pest Control Ltd,15737U
Gloucester City Council,23UE,Publications,RC450,Fees For Services Received,5350,Communications Services 16,26/10/2016,425294,40000,NET,Gloucestershire County Council,18650D
Gloucester City Council,23UE,Retail Market - Landlord,HM300,Sewerage And Environ Charges,3402,Duty of Care cover Oct16-SEP17,26/10/2016,424222,73.4,NET,Phs Group Ltd,55193S
Gloucester City Council,23UE,Retail Market - Landlord,HM300,Sewerage And Environ Charges,3402,Market sanitary disposal,26/10/2016,424221,2084.1,NET,Phs Group Ltd,55193S
Gloucester City Council,23UE,The Arbor,HC501,Catering Provisions -Food,5110,Food,26/10/2016,425284,32.61,NET,Total Produce Gloucester,12645E
Gloucester City Council,23UE,The Arbor,HC501,Catering Provisions -Food,5110,Food,26/10/2016,425285,50.2,NET,Total Produce Gloucester,12645E
Gloucester City Council,23UE,The Arbor,HC501,Catering Provisions -Food,5110,Food,26/10/2016,425286,48.27,NET,Total Produce Gloucester,12645E
Gloucester City Council,23UE,Cemeteries,HC300,Maint Of Grounds - General,3030,Various Items,27/10/2016,425265,85.5,NET,Spaldings,48759Y
Gloucester City Council,23UE,Cemeteries,HC300,Major R And M - Vehicles,4010,Handle,27/10/2016,425147,62.8,NET,Garden Machinery Gloucester,55641K
Gloucester City Council,23UE,City Museum Catering,LM202,Operational Materials,5070,till rolls,27/10/2016,424990,16.69,NET,Nisbets,55372P
Gloucester City Council,23UE,Civica Admin Charges,RT105,Postages,5400,Post 26/09 - 07/10 2016,27/10/2016,425149,1035.17,NET,Royal Mail S.Wales & South West,35830S
Gloucester City Council,23UE,Contact Centre,RB300,Stationery,5302,Marble Papers,27/10/2016,425143,136.62,NET,The Supermarket Online.Com,15516N
Gloucester City Council,23UE,Development Management,PT200,Vocational Training,2970,Course 13/10/2016,27/10/2016,425385,199,NET,Rtpi Conferences,10380N
Gloucester City Council,23UE,REDACTED,REDACTED,REDACTED,REDACTED,REDACTED,27/10/2016,REDACTED,88.8,NET,REDACTED,REDACTED
Gloucester City Council,23UE,Economic Development,FP300,Subscriptions,5600,Annual Subscriptions,27/10/2016,425399,576,NET,The Requirement List Ltd,17245C
Gloucester City Council,23UE,Financial Services,RT200,Basic Pay - Temporary Staff,2751,temporary staff w/e 16/10/16,27/10/2016,425394,122.13,NET,Venn Group Ltd,04339P
Gloucester City Council,23UE,Financial Services,RT200,Vocational Training,2970,Exam Fees,27/10/2016,425390,78,NET,Pitman Training Worcester,16384W
Gloucester City Council,23UE,REDACTED,REDACTED,REDACTED,REDACTED,REDACTED,27/10/2016,REDACTED,197.08,NET,REDACTED,REDACTED
Gloucester City Council,23UE,REDACTED,REDACTED,REDACTED,REDACTED,REDACTED,27/10/2016,REDACTED,146.13,NET,REDACTED,REDACTED
Gloucester City Council,23UE,REDACTED,REDACTED,REDACTED,REDACTED,REDACTED,27/10/2016,REDACTED,50,NET,REDACTED,REDACTED
Gloucester City Council,23UE,Hmo Licences,HE520,Operational Equipment <5000,5012,Locksmith 18/10/16,27/10/2016,425280,110,NET,Gloucester Locksmiths,18160C
Gloucester City Council,23UE,Homelessness,CH120,Board And Lodging,5515,Service Charges,27/10/2016,425422,116.9,NET,Riverside Group Ltd,03241U
Gloucester City Council,23UE,REDACTED,REDACTED,REDACTED,REDACTED,REDACTED,27/10/2016,REDACTED,355,NET,REDACTED,REDACTED
Gloucester City Council,23UE,Licences,HE510,Subsistence (Non - Training),5500,Standard Organisation 16/17,27/10/2016,425137,275,NET,Institute Of Licensing Ltd,11205Z
Gloucester City Council,23UE,Planning Policy & Heritage,PT300,Fees For Services Received,5350,Specialist Support,27/10/2016,425386,12300,NET,Enfusion Ltd,17180F
Gloucester City Council,23UE,Blackfriars Weddings,LA220,Hire Of Equipment,5020,Wine Goblet,28/10/2016,425412,25.84,NET,Gloucester Event Hire,56935D
Gloucester City Council,23UE,City Museum And Art Gallery,LM200,Operational Materials,5070,Individual & Family Passes,28/10/2016,425411,1172.65,NET,Soldiers Of Gloucestershire Museum,11068G
Gloucester City Council,23UE,City Museum Catering,LM202,Catering Provisions -Food,5110,Food,28/10/2016,423965,254.53,NET,Woodward Foodservice,10714F
Gloucester City Council,23UE,City Museum Catering,LM202,Catering Provisions -Food,5110,Milk,28/10/2016,425414,2.38,NET,Total Produce Gloucester,12645E
Gloucester City Council,23UE,Economic Development,FP300,Conference/Meeting Expenses,5510,IED Conference 2016,28/10/2016,425417,269,NET,Haymarket Media Group Ltd,56642Y
Gloucester City Council,23UE,Hackney Carriages,HL100,Other Minor Supplies Services,5590,Yellow Lanyards,28/10/2016,425388,31.95,NET,The Smart Card Store Ltd,17207L
Gloucester City Council,23UE,Health And Safety,HD300,Hospitality,5122,room hire 8/9/16,28/10/2016,424245,67.4,NET,Aspire Sports & Cultural Trust,08135V
Gloucester City Council,23UE,Homelessness,CH120,Fees For Services Received,5350,Interpreting 12/10/16,28/10/2016,425415,34.65,NET,Prime Production Ltd,06262F
Gloucester City Council,23UE,Homelessness Prevention,CH122,Grants To Advice Centres,7100,Emergency Bed,28/10/2016,425138,2684.5,NET,P3 (People Potential Possibilities),13809N
Gloucester City Council,23UE,Investment Property,RB500,General Repair/Maint Buildings,3000,Excavator hire for Bund removal,28/10/2016,424827,232,NET,Ken Pink Plant Hire Ltd,56884V
Gloucester City Council,23UE,Investment Property,RB500,General Repair/Maint Buildings,3000,supply master keys,28/10/2016,424809,100,NET,J M Grail (General Engineering) Ltd,03204A
Gloucester City Council,23UE,Kings Quarter,RY146,Contract Payments,0020,excavator hire,28/10/2016,424456,116,CAP,Ken Pink Plant Hire Ltd,56884V
Gloucester City Council,23UE,Kings Walk Bastion,GY023,Contract Payments,0020,manufacture 3 threaded T keys,28/10/2016,423959,92.2,CAP,J M Grail (General Engineering) Ltd,03204A
Gloucester City Council,23UE,Off Street Car Parks,PP110,Contracted Services,6970,cashless parking fees,28/10/2016,424363,806.08,NET,Chipside Ltd,06535T
Gloucester City Council,23UE,Off Street Car Parks,PP110,Contracted Services,6970,third party charges,28/10/2016,424362,1540.54,NET,Chipside Ltd,06535T
Gloucester City Council,23UE,Off Street Car Parks,PP110,General Repair/Maint Buildings,3000,Car Park Sign,28/10/2016,425248,108.15,NET,Hanman Split Ltd,56889J
Gloucester City Council,23UE,Planning Policy & Heritage,PT300,Exhibits And Collections,5038,reinstall sign boards,28/10/2016,423960,420,NET,Ken Pink Plant Hire Ltd,56884V
Gloucester City Council,23UE,REDACTED,REDACTED,REDACTED,REDACTED,REDACTED,28/10/2016,REDACTED,20.5,NET,REDACTED,REDACTED
Gloucester City Council,23UE,Retail Market - Landlord,HM300,Trade Refuse Collection,3630,Food Waste September 2016,28/10/2016,425418,150,NET,B & S Pointon Ltd,06253G
Gloucester City Council,23UE,Statutory Testing,RS310,Fire Alarm Maintenance,3053,Crematorium service contract 15/16,28/10/2016,425330,218,NET,Allcoopers Ltd,52921E
Gloucester City Council,23UE,Coll Fund Revenue Account,ZC100,County Council Precept,7460,precept payment 9/11/16,31/10/2016,425543,4168751.7,NET,Gloucestershire County Council,18650D
Gloucester City Council,23UE,Coll Fund Revenue Account,ZC100,Nndr Central Share,7474,brr pooling payment due 21/11/16,31/10/2016,425546,424982,NET,Gloucestershire County Council,18650D
Gloucester City Council,23UE,Coll Fund Revenue Account,ZC100,Nndr Tariff,7473,brr pooling payment due 21/11/16,31/10/2016,425547,1331309,NET,Stroud District Council,74737T
Gloucester City Council,23UE,Coll Fund Revenue Account,ZC100,Police Precept,7461,precept payment due 9th November 2016,31/10/2016,425544,773478.2,NET,"Police & Crime Commissioner, Gloucestershire",49521B
Gloucester City Council,23UE,Council Streetcare Team,HI101,Printing,5300,TRI Signs & Post,31/10/2016,425465,903,NET,Alpha Graphics,03471Y
Gloucester City Council,23UE,Employers Pension Contribs,ZR355,Pension Contribs Incl Backf,2901,pension deficit payment for October 2016,31/10/2016,425545,238916.67,NET,Gloucestershire County Council,10614L
Gloucester City Council,23UE,REDACTED,REDACTED,REDACTED,REDACTED,REDACTED,31/10/2016,REDACTED,489.44,NET,REDACTED,REDACTED
Gloucester City Council,23UE,Homelessness Prevention,CH122,Fees For Services Received,5350,Housing Loan Deposit,31/10/2016,425536,530,NET,Alex Clark Lettings,13439A
Gloucester City Council,23UE,REDACTED,REDACTED,REDACTED,REDACTED,REDACTED,31/10/2016,REDACTED,500,NET,REDACTED,REDACTED
Gloucester City Council,23UE,Council Streetcare Team,HI101,Fees For Services Received,5350,Maintenance Works- Daniels Brook,01/11/2016,425135,1840,NET,Lower Severn Drainage Board,04918R
Gloucester City Council,23UE,REDACTED,REDACTED,REDACTED,REDACTED,REDACTED,01/11/2016,REDACTED,300,NET,REDACTED,REDACTED
Gloucester City Council,23UE,Crematorium,HC200,Fees For Services Received,5350,Doctors fees for October 2016,01/11/2016,425594,842.64,NET,Dr C M Stretton,00306P
Gloucester City Council,23UE,Crematorium,HC200,Fees For Services Received,5350,doctors fees October 2016,01/11/2016,425595,337.6,NET,Dr R W Bell,01571P
Gloucester City Council,23UE,Crematorium,HC200,Fees For Services Received,5350,doctors fees October 2016,01/11/2016,425597,1458.4,NET,Dr D Martin,00890P
Gloucester City Council,23UE,Disabled Facilities Grants,CY013,Disabled Facility Grants,0074,"Disabled Facilities Grant, MDF5200",01/11/2016,425538,8285.16,CAP,Mears Home Improvement Ltd,00096G
Gloucester City Council,23UE,Disabled Facilities Grants,CY013,Disabled Facility Grants,0074,"Disabled Facilities Grant - MDF5195, inv 45806",01/11/2016,425542,2075,CAP,Premiere Healthcare Ltd,09125N
Gloucester City Council,23UE,REDACTED,REDACTED,REDACTED,REDACTED,REDACTED,01/11/2016,REDACTED,170,NET,REDACTED,REDACTED
Gloucester City Council,23UE,Guildhall Lettings,LA400,Materials For Sale,5080,September 2016 Client Sessions,01/11/2016,425537,50,NET,Gloucestershire Music Makers,13755L
Gloucester City Council,23UE,Guildhall Lettings,LA400,Sale Of Goods And Services,9230,September 2016 Client Sessions,01/11/2016,425537,-10,NET,Gloucestershire Music Makers,13755L
Gloucester City Council,23UE,Hempsted Market/Car Boot,HM234,Sewerage And Environ Charges,3402,Pond & Swale Clearance- Hempsted,01/11/2016,425420,1260.18,NET,Lower Severn Drainage Board,04918R
Gloucester City Council,23UE,Business Transformation & Tech,RT700,Mobile Phones,5409,GSI framework charges - PSN,,424973,2434,NET,Vodafone Ltd,53527D
Gloucester City Council,23UE,Financial Services,RT200,Fees For Services Received,5350,Grange Road works,,425224,91.31,NET,Western Power Distribution,13058T
Gloucester City Council,23UE,REDACTED,REDACTED,REDACTED,REDACTED,REDACTED,,REDACTED,750,NET,REDACTED,REDACTED
Gloucester City Council,23UE,REDACTED,REDACTED,REDACTED,REDACTED,REDACTED,,REDACTED,-31.25,NET,REDACTED,REDACTED
,,,,,,,,Sum:,9580610.71,,,
